Workbook

Sheet Title Page
B2: Building an LBO Template - Multiple Worksheets
B4: Workbook Index
B6: # | C6: Worksheet | D6: Description
B8: 1 | C8: Sources & Uses | D8: Sources & Uses and EV as a multiple of EBITDA.
B9: =B8+1 -> 2 | C9: Exit Analysis | D9: Exit analysis, data tables and scenarios.
B10: =B9+1 -> 3 | C10: Post-Transaction Financial Statements | D10: Financial statements and balance sheet adjustments.
B11: 4 | C11: IS Detail | D11: Income statement scenarios 1 through 3.
B12: 5 | C12: Debt Schedule | D12: Supporting schedule.
B13: 6 | C13: PP&E Schedule | D13: Supporting schedule.
B14: 7 | C14: Debt Ratios | D14: Debt ratios and liquidity analysis.

Sheet Sources & Uses
B1: COMPANY
B2: SOURCES & USES
B4: ='Exit Analysis'!K1 -> 1
B5: Enterprise Value | G5: 75000 | I5: SOURCES | L5: USES
B6: Historical EBITDA @ Close | G6: ='Post-Transaction Fncl Sts'!F48 -> 12021.64 | I6: Common | J6: =SUM(G5,G11:G16)-SUM(J7:J9) -> 36350 | L6: Seller Proceeds | M6: =M16-SUM(M7:M12) -> 62500
B7: EV as Multiple of Min EBITDA | G7: =G5/G6 -> 6.238749455 | I7: Sub Debt | J7: 10000 | L7: OLDCO Debt | M7: ='Post-Transaction Fncl Sts'!N121 -> 12500
B8: Senior Debt EBITDA Multiple | G8: =J8/G6 -> 2.495499782 | I8: Senior Debt | J8: 30000 | L8: Trnsctn Expenses | M8: =G11 -> 500
B9: Sub Debt EBITDA Multiple | G9: =J7/G6 -> 0.8318332607 | I9: Line of Credit | J9: 0 | L9: Financing Fees (Sub Debt) | M9: =G13 -> 200
B10: Transaction Expenses | C10: Fee (%) | E10: Undrawn LOC | L10: Financing Fees (Senior Debt) | M10: =G14 -> 600
B11: Trnsctn Expenses | G11: 500 | L11: Financing Fees (L.O.C.) | M11: 50
B12: Intermediary Fee | G12: 0 | L12: Cash | M12: 0
B13: Financing Fees (Sub Debt) | C13: 0.02 | G13: =C13*J7 -> 200
B14: Financing Fees (Senior Debt) | C14: 0.02 | G14: =C14*J8 -> 600
B15: Financing Fees (L.O.C.) | C15: 0.01 | E15: 5000 | G15: =C15*E15 -> 50
B16: Closing Fee | G16: 0 | I16: Total | J16: =SUM(J6:J9) -> 76350 | L16: Total | M16: =J16 -> 76350

Sheet Exit Analysis
B1: ='Sources & Uses'!B1 -> COMPANY | J1: SCENARIO | K1: 1
B2: EXIT ANALYSIS
B4: IMPLIED VALUATION CALCULATION (EXIT)
B5: Exit Year | K5: 2022
B6: EV/EBITDA Multiple | K6: 6.5
B7: EBITDA | K7: ='Post-Transaction Fncl Sts'!K48 -> 15342.99748
B8: Enterprise Value | K8: =K6*K7 -> 99729.48364
B9: Less: Debt | K9: =SUM('Post-Transaction Fncl Sts'!K118:K120) -> 19000
B10: Plus: Cash | K10: ='Post-Transaction Fncl Sts'!K75 -> 9826.537449
B11: Equity Value | K11: =K8-K9+K10 -> 90556.02109
B14: OWNERSHIP STRUCTURE
K15: At Exit
B17: Equity
B18: ='Post-Transaction Fncl Sts'!P56 -> Common | K18: 1
B19: Subordinated Debt
B20: ='Post-Transaction Fncl Sts'!P57 -> Sub Debt | K20: 0
B21: TOTAL | K21: =SUM(K18:K20) -> 1
B23: =UPPER(B18) -> COMMON | F23: ='Post-Transaction Fncl Sts'!F7 -> 2017 | G23: ='Post-Transaction Fncl Sts'!G7 -> 2018 | H23: ='Post-Transaction Fncl Sts'!H7 -> 2019 | I23: ='Post-Transaction Fncl Sts'!I7 -> 2020 | J23: ='Post-Transaction Fncl Sts'!J7 -> 2021 | K23: ='Post-Transaction Fncl Sts'!K7 -> 2022
F24: ='Post-Transaction Fncl Sts'!$F$8 -> 2017-12-31 | G24: ='Post-Transaction Fncl Sts'!$G$8 -> 2018-12-31 | H24: ='Post-Transaction Fncl Sts'!$H$8 -> 2019-12-31 | I24: ='Post-Transaction Fncl Sts'!$I$8 -> 2020-12-31 | J24: ='Post-Transaction Fncl Sts'!$J$8 -> 2021-12-31 | K24: ='Post-Transaction Fncl Sts'!$K$8 -> 2022-12-31
B26: Interest Rate | C26: NA
B27: Equity (%) | C27: =K18 -> 1
B29: Exit Year 5
B30: Investment | F30: =-'Sources & Uses'!J6 -> -36350 | G30: =SUM(G31:G32) -> 0 | H30: =SUM(H31:H32) -> 0 | I30: 0 | J30: 0 | K30: 90556.02109
B31: Dividends
B32: Equity Value | K32: =$C$27*$K$11 -> 90556.02109
B34: IRR | C34: =IF(F30<0,XIRR(F30:K30,F24:K24),"NM") -> 0.2001600444
B35: Cash Multiple | C35: =IF(F30<0,SUM(G30:K30)/-F30,"NM") -> 2.491224789
B37: =UPPER(B20) -> SUB DEBT | F37: =F23 -> 2017 | G37: 2018 | H37: 2019 | I37: 2020 | J37: 2021 | K37: 2022
F38: ='Post-Transaction Fncl Sts'!$F$8 -> 2017-12-31 | G38: ='Post-Transaction Fncl Sts'!$G$8 -> 2018-12-31 | H38: ='Post-Transaction Fncl Sts'!$H$8 -> 2019-12-31 | I38: ='Post-Transaction Fncl Sts'!$I$8 -> 2020-12-31 | J38: ='Post-Transaction Fncl Sts'!$J$8 -> 2021-12-31 | K38: ='Post-Transaction Fncl Sts'!$K$8 -> 2022-12-31
B40: Interest Rate | C40: ='Debt Schedule'!C33 -> 0.12
B41: Equity (%) | C41: =K20 -> 0
B43: Exit Year 5
B44: Investment | F44: =-'Sources & Uses'!J7 -> -10000 | G44: =SUM(G45:G47) -> 1200 | H44: =SUM(H45:H47) -> 1200 | I44: =SUM(I45:I47) -> 1200 | J44: =SUM(J45:J47) -> 1200 | K44: =SUM(K45:K47) -> 11200
B45: Interest | G45: ='Debt Schedule'!E33 -> 1200 | H45: ='Debt Schedule'!F33 -> 1200 | I45: ='Debt Schedule'!G33 -> 1200 | J45: ='Debt Schedule'!H33 -> 1200 | K45: ='Debt Schedule'!I33 -> 1200
B46: Debt Repayment | K46: ='Debt Schedule'!I32 -> 10000
B47: Equity Value | K47: =$C$41*$K$11 -> 0
B49: IRR | C49: =IF(F44<0,XIRR(F44:K44,F38:K38),"NM") -> 0.11993137
B50: Cash Multiple | C50: =IF(F44<0,SUM(G44:K44)/-F44,"NM") -> 1.6
B52: DATA TABLES
B54: [] | E54: EBITDA Multiple
D55: =#REF! ->  | E55: 5 | F55: =+E55+0.5 -> 5.5 | G55: =+F55+0.5 -> 6 | H55: 6.5 | I55: 7 | J55: 7.5 | K55: 8
C56: Scenario | D56: 1
D57: 2
D58: 3
E61: EBITDA Multiple
B62: [] | D62: =C49 -> 0.11993137 | E62: 5 | F62: =+E62+0.5 -> 5.5 | G62: =+F62+0.5 -> 6 | H62: 6.5 | I62: 7 | J62: 7.5 | K62: 8
C63: Scenario | D63: 1
D64: 2
D65: 3
B68: INCOME STATEMENT SCENARIO SUMMARY
F69: ='Post-Transaction Fncl Sts'!F8 -> 2017-12-31 | G69: ='Post-Transaction Fncl Sts'!G8 -> 2018-12-31 | H69: ='Post-Transaction Fncl Sts'!H8 -> 2019-12-31 | I69: ='Post-Transaction Fncl Sts'!I8 -> 2020-12-31 | J69: ='Post-Transaction Fncl Sts'!J8 -> 2021-12-31 | K69: ='Post-Transaction Fncl Sts'!K8 -> 2022-12-31
F70: ='Post-Transaction Fncl Sts'!F9 -> 12 | G70: ='Post-Transaction Fncl Sts'!G9 -> 12 | H70: ='Post-Transaction Fncl Sts'!H9 -> 12 | I70: ='Post-Transaction Fncl Sts'!I9 -> 12 | J70: ='Post-Transaction Fncl Sts'!J9 -> 12 | K70: ='Post-Transaction Fncl Sts'!K9 -> 12
B72: 1
C73: Revenue | F73: =IF($B$72=$K$1,'Post-Transaction Fncl Sts'!F11,'Exit Analysis'!F73) -> 50000 | G73: =IF($B$72=$K$1,'Post-Transaction Fncl Sts'!G11,'Exit Analysis'!G73) -> 52500 | H73: =IF($B$72=$K$1,'Post-Transaction Fncl Sts'!H11,'Exit Analysis'!H73) -> 55125 | I73: =IF($B$72=$K$1,'Post-Transaction Fncl Sts'!I11,'Exit Analysis'!I73) -> 57881.25 | J73: =IF($B$72=$K$1,'Post-Transaction Fncl Sts'!J11,'Exit Analysis'!J73) -> 60775.3125 | K73: =IF($B$72=$K$1,'Post-Transaction Fncl Sts'!K11,'Exit Analysis'!K73) -> 63814.07813
C74: Growth Rate (%) | G74: =G73/F73-1 -> 0.05 | H74: =H73/G73-1 -> 0.05 | I74: =I73/H73-1 -> 0.05 | J74: =J73/I73-1 -> 0.05 | K74: 0.05
C75: COGS | F75: =IF($B$72=$K$1,'Post-Transaction Fncl Sts'!F14,'Exit Analysis'!F75) -> 29383 | G75: =IF($B$72=$K$1,'Post-Transaction Fncl Sts'!G14,'Exit Analysis'!G75) -> 30852.15 | H75: =IF($B$72=$K$1,'Post-Transaction Fncl Sts'!H14,'Exit Analysis'!H75) -> 32394.7575 | I75: =IF($B$72=$K$1,'Post-Transaction Fncl Sts'!I14,'Exit Analysis'!I75) -> 34014.49537 | J75: =IF($B$72=$K$1,'Post-Transaction Fncl Sts'!J14,'Exit Analysis'!J75) -> 35715.22014 | K75: =IF($B$72=$K$1,'Post-Transaction Fncl Sts'!K14,'Exit Analysis'!K75) -> 37500.98115
C76: GM | F76: =F73-F75 -> 20617 | G76: =G73-G75 -> 21647.85 | H76: 22730.2425 | I76: 23866.75463 | J76: 25060.09236 | K76: 26313.09697
C77: % of Sales | F77: =F76/F73 -> 0.41234 | G77: =G76/G73 -> 0.41234 | H77: 0.41234 | I77: 0.41234 | J77: 0.41234 | K77: 0.41234
C78: SG&A | F78: =IF($B$72=$K$1,'Post-Transaction Fncl Sts'!F20,'Exit Analysis'!F78) -> 8595.36 | G78: =IF($B$72=$K$1,'Post-Transaction Fncl Sts'!G20,'Exit Analysis'!G78) -> 9025.128 | H78: =IF($B$72=$K$1,'Post-Transaction Fncl Sts'!H20,'Exit Analysis'!H78) -> 9476.3844 | I78: =IF($B$72=$K$1,'Post-Transaction Fncl Sts'!I20,'Exit Analysis'!I78) -> 9950.20362 | J78: =IF($B$72=$K$1,'Post-Transaction Fncl Sts'!J20,'Exit Analysis'!J78) -> 10447.7138 | K78: =IF($B$72=$K$1,'Post-Transaction Fncl Sts'!K20,'Exit Analysis'!K78) -> 10970.09949
C79: EBIT | F79: =F76-F78 -> 12021.64 | G79: =G76-G78 -> 12622.722 | H79: 13253.8581 | I79: 13916.55101 | J79: 14612.37856 | K79: 15342.99748
C80: % of Sales | F80: =F79/F73 -> 0.2404328 | G80: =G79/G73 -> 0.2404328 | H80: 0.2404328 | I80: 0.2404328 | J80: 0.2404328 | K80: 0.2404328
C82: EBITDA (adj for mgmt fee) | F82: =IF($B$72=$K$1,'Post-Transaction Fncl Sts'!F48,'Exit Analysis'!F82) -> 12021.64 | G82: =IF($B$72=$K$1,'Post-Transaction Fncl Sts'!G48,'Exit Analysis'!G82) -> 12622.722 | H82: =IF($B$72=$K$1,'Post-Transaction Fncl Sts'!H48,'Exit Analysis'!H82) -> 13253.8581 | I82: =IF($B$72=$K$1,'Post-Transaction Fncl Sts'!I48,'Exit Analysis'!I82) -> 13916.55101 | J82: =IF($B$72=$K$1,'Post-Transaction Fncl Sts'!J48,'Exit Analysis'!J82) -> 14612.37856 | K82: =IF($B$72=$K$1,'Post-Transaction Fncl Sts'!K48,'Exit Analysis'!K82) -> 15342.99748
C83: % of Sales | F83: =F82/F73 -> 0.2404328 | G83: 0.2404328 | H83: 0.2404328 | I83: 0.2404328 | J83: 0.2404328 | K83: 0.2404328
B85: 2
C86: Revenue | F86: =IF($B$85=$K$1,'Post-Transaction Fncl Sts'!F11,'Exit Analysis'!F86) -> 50000 | G86: =IF($B$85=$K$1,'Post-Transaction Fncl Sts'!G11,'Exit Analysis'!G86) -> 55000 | H86: =IF($B$85=$K$1,'Post-Transaction Fncl Sts'!H11,'Exit Analysis'!H86) -> 60500 | I86: =IF($B$85=$K$1,'Post-Transaction Fncl Sts'!I11,'Exit Analysis'!I86) -> 66550 | J86: =IF($B$85=$K$1,'Post-Transaction Fncl Sts'!J11,'Exit Analysis'!J86) -> 73205 | K86: =IF($B$85=$K$1,'Post-Transaction Fncl Sts'!K11,'Exit Analysis'!K86) -> 80525.5
C87: Growth Rate (%) | G87: =G86/F86-1 -> 0.1 | H87: =H86/G86-1 -> 0.1 | I87: =I86/H86-1 -> 0.1 | J87: =J86/I86-1 -> 0.1 | K87: =K86/J86-1 -> 0.1
C88: COGS | F88: =IF($B$85=$K$1,'Post-Transaction Fncl Sts'!F14,'Exit Analysis'!F88) -> 29383 | G88: =IF($B$85=$K$1,'Post-Transaction Fncl Sts'!G14,'Exit Analysis'!G88) -> 32321.3 | H88: =IF($B$85=$K$1,'Post-Transaction Fncl Sts'!H14,'Exit Analysis'!H88) -> 35553.43 | I88: =IF($B$85=$K$1,'Post-Transaction Fncl Sts'!I14,'Exit Analysis'!I88) -> 39108.773 | J88: =IF($B$85=$K$1,'Post-Transaction Fncl Sts'!J14,'Exit Analysis'!J88) -> 43019.6503 | K88: =IF($B$85=$K$1,'Post-Transaction Fncl Sts'!K14,'Exit Analysis'!K88) -> 47321.61533
C89: GM | F89: =F86-F88 -> 20617 | G89: =G86-G88 -> 22678.7 | H89: 24946.57 | I89: 27441.227 | J89: 30185.3497 | K89: 33203.88467
C90: % of Sales | F90: =F89/F86 -> 0.41234 | G90: =G89/G86 -> 0.41234 | H90: 0.41234 | I90: 0.41234 | J90: 0.41234 | K90: 0.41234
C91: SG&A | F91: =IF($B$85=$K$1,'Post-Transaction Fncl Sts'!F20,'Exit Analysis'!F91) -> 8595.36 | G91: =IF($B$85=$K$1,'Post-Transaction Fncl Sts'!G20,'Exit Analysis'!G91) -> 9454.896 | H91: =IF($B$85=$K$1,'Post-Transaction Fncl Sts'!H20,'Exit Analysis'!H91) -> 10400.3856 | I91: =IF($B$85=$K$1,'Post-Transaction Fncl Sts'!I20,'Exit Analysis'!I91) -> 11440.42416 | J91: =IF($B$85=$K$1,'Post-Transaction Fncl Sts'!J20,'Exit Analysis'!J91) -> 12584.46658 | K91: =IF($B$85=$K$1,'Post-Transaction Fncl Sts'!K20,'Exit Analysis'!K91) -> 13842.91323
C92: EBIT | F92: =F89-F91 -> 12021.64 | G92: =G89-G91 -> 13223.804 | H92: 14546.1844 | I92: 16000.80284 | J92: 17600.88312 | K92: 19360.97144
C93: % of Sales | F93: =F92/F86 -> 0.2404328 | G93: =G92/G86 -> 0.2404328 | H93: 0.2404328 | I93: 0.2404328 | J93: 0.2404328 | K93: 0.2404328
C95: EBITDA (adj for mgmt fee) | F95: =IF($B$85=$K$1,'Post-Transaction Fncl Sts'!F48,'Exit Analysis'!F95) -> 12021.64 | G95: =IF($B$85=$K$1,'Post-Transaction Fncl Sts'!G48,'Exit Analysis'!G95) -> 13223.804 | H95: =IF($B$85=$K$1,'Post-Transaction Fncl Sts'!H48,'Exit Analysis'!H95) -> 14546.1844 | I95: =IF($B$85=$K$1,'Post-Transaction Fncl Sts'!I48,'Exit Analysis'!I95) -> 16000.80284 | J95: =IF($B$85=$K$1,'Post-Transaction Fncl Sts'!J48,'Exit Analysis'!J95) -> 17600.88312 | K95: =IF($B$85=$K$1,'Post-Transaction Fncl Sts'!K48,'Exit Analysis'!K95) -> 19360.97144
C96: % of Sales | F96: =F95/F86 -> 0.2404328 | G96: 0.2404328 | H96: 0.2404328 | I96: 0.2404328 | J96: 0.2404328 | K96: 0.2404328
B98: 3
C99: Revenue | F99: =IF($B$98=$K$1,'Post-Transaction Fncl Sts'!F11,'Exit Analysis'!F99) -> 50000 | G99: =IF($B$98=$K$1,'Post-Transaction Fncl Sts'!G11,'Exit Analysis'!G99) -> 60000 | H99: =IF($B$98=$K$1,'Post-Transaction Fncl Sts'!H11,'Exit Analysis'!H99) -> 72000 | I99: =IF($B$98=$K$1,'Post-Transaction Fncl Sts'!I11,'Exit Analysis'!I99) -> 86400 | J99: =IF($B$98=$K$1,'Post-Transaction Fncl Sts'!J11,'Exit Analysis'!J99) -> 103680 | K99: =IF($B$98=$K$1,'Post-Transaction Fncl Sts'!K11,'Exit Analysis'!K99) -> 124416
C100: Growth Rate (%) | G100: =G99/F99-1 -> 0.2 | H100: =H99/G99-1 -> 0.2 | I100: =I99/H99-1 -> 0.2 | J100: =J99/I99-1 -> 0.2 | K100: =K99/J99-1 -> 0.2
C101: COGS | F101: =IF($B$98=$K$1,'Post-Transaction Fncl Sts'!F14,'Exit Analysis'!F101) -> 29383 | G101: =IF($B$98=$K$1,'Post-Transaction Fncl Sts'!G14,'Exit Analysis'!G101) -> 35259.6 | H101: =IF($B$98=$K$1,'Post-Transaction Fncl Sts'!H14,'Exit Analysis'!H101) -> 42311.52 | I101: =IF($B$98=$K$1,'Post-Transaction Fncl Sts'!I14,'Exit Analysis'!I101) -> 50773.824 | J101: =IF($B$98=$K$1,'Post-Transaction Fncl Sts'!J14,'Exit Analysis'!J101) -> 60928.5888 | K101: =IF($B$98=$K$1,'Post-Transaction Fncl Sts'!K14,'Exit Analysis'!K101) -> 73114.30656
C102: GM | F102: =F99-F101 -> 20617 | G102: =G99-G101 -> 24740.4 | H102: 29688.48 | I102: 35626.176 | J102: 42751.4112 | K102: 51301.69344
C103: % of Sales | F103: =F102/F99 -> 0.41234 | G103: =G102/G99 -> 0.41234 | H103: 0.41234 | I103: 0.41234 | J103: 0.41234 | K103: 0.41234
C104: SG&A | F104: =IF($B$98=$K$1,'Post-Transaction Fncl Sts'!F20,'Exit Analysis'!F104) -> 8595.36 | G104: =IF($B$98=$K$1,'Post-Transaction Fncl Sts'!G20,'Exit Analysis'!G104) -> 10314.432 | H104: =IF($B$98=$K$1,'Post-Transaction Fncl Sts'!H20,'Exit Analysis'!H104) -> 12377.3184 | I104: =IF($B$98=$K$1,'Post-Transaction Fncl Sts'!I20,'Exit Analysis'!I104) -> 14852.78208 | J104: =IF($B$98=$K$1,'Post-Transaction Fncl Sts'!J20,'Exit Analysis'!J104) -> 17823.3385 | K104: =IF($B$98=$K$1,'Post-Transaction Fncl Sts'!K20,'Exit Analysis'!K104) -> 21388.0062
C105: EBIT | F105: =F102-F104 -> 12021.64 | G105: =G102-G104 -> 14425.968 | H105: 17311.1616 | I105: 20773.39392 | J105: 24928.0727 | K105: 29913.68724
C106: % of Sales | F106: =F105/F99 -> 0.2404328 | G106: =G105/G99 -> 0.2404328 | H106: 0.2404328 | I106: 0.2404328 | J106: 0.2404328 | K106: 0.2404328
C108: EBITDA (adj for mgmt fee) | F108: =IF($B$98=$K$1,'Post-Transaction Fncl Sts'!F48,'Exit Analysis'!F108) -> 12021.64 | G108: =IF($B$98=$K$1,'Post-Transaction Fncl Sts'!G48,'Exit Analysis'!G108) -> 14425.968 | H108: =IF($B$98=$K$1,'Post-Transaction Fncl Sts'!H48,'Exit Analysis'!H108) -> 17311.1616 | I108: =IF($B$98=$K$1,'Post-Transaction Fncl Sts'!I48,'Exit Analysis'!I108) -> 20773.39392 | J108: =IF($B$98=$K$1,'Post-Transaction Fncl Sts'!J48,'Exit Analysis'!J108) -> 24928.0727 | K108: =IF($B$98=$K$1,'Post-Transaction Fncl Sts'!K48,'Exit Analysis'!K108) -> 29913.68724
C109: % of Sales | F109: =F108/F99 -> 0.2404328 | G109: 0.2404328 | H109: 0.2404328 | I109: 0.2404328 | J109: 0.2404328 | K109: 0.2404328

Sheet Post-Transaction Fncl Sts
B1: ='Sources & Uses'!B1 -> COMPANY
B2: INCOME STATEMENT
B4: ='Exit Analysis'!K1 -> 1
G5: Projections
D6: =E6 -> Historical | E6: Historical | F6: Projected | G6: 1 | H6: =G6+1 -> 2 | I6: =H6+1 -> 3 | J6: 4 | K6: 5 | L6: 6
D7: =YEAR(D8) -> 2015 | E7: 2016 | F7: 2017 | G7: 2018 | H7: 2019 | I7: 2020 | J7: 2021 | K7: 2022 | L7: 2023
D8: =DATE(YEAR(E8)-1,MONTH(E8),DAY(E8)) -> 2015-12-31 | E8: 2016-12-31 | F8: 2017-12-31 | G8: 2018-12-31 | H8: =DATE(YEAR(G8)+1,MONTH(G8),DAY(G8)) -> 2019-12-31 | I8: 2020-12-31 | J8: 2021-12-31 | K8: 2022-12-31 | L8: 2023-12-31
D9: =E9 -> 12 | E9: =DAYS360(D8,E8)/30 -> 12 | F9: =DAYS360(E8,F8)/30 -> 12 | G9: =IF(MONTH(F8)=12,12,DAYS360(F8,G8)/30) -> 12 | H9: =DAYS360(G8,H8)/30 -> 12 | I9: 12 | J9: 12 | K9: 12 | L9: 12
B11: Net Sales | D11: ='IS Detail'!F25 -> 50000 | E11: ='IS Detail'!G25 -> 50000 | F11: ='IS Detail'!H25 -> 50000 | G11: ='IS Detail'!I25 -> 52500 | H11: ='IS Detail'!J25 -> 55125 | I11: ='IS Detail'!K25 -> 57881.25 | J11: ='IS Detail'!L25 -> 60775.3125 | K11: ='IS Detail'!M25 -> 63814.07813 | L11: ='IS Detail'!N25 -> 67004.78203
B12: Growth (%) | D12: NM | E12: =E11/D11-1 -> 0 | F12: =IF(F9<>12,"NM",F11/E11-1) -> 0 | G12: =IF(G9<>12,"NM",G11/F11-1) -> 0.05 | H12: =IF(G9<>12,H11/SUM(F11,G11)-1,H11/G11-1) -> 0.05 | I12: =I11/H11-1 -> 0.05 | J12: =J11/I11-1 -> 0.05 | K12: =K11/J11-1 -> 0.05 | L12: =L11/K11-1 -> 0.05
B14: COGS (Net of D & A) | D14: ='IS Detail'!F41 -> 29383 | E14: ='IS Detail'!G41 -> 29383 | F14: ='IS Detail'!H41 -> 29383 | G14: ='IS Detail'!I41 -> 30852.15 | H14: ='IS Detail'!J41 -> 32394.7575 | I14: ='IS Detail'!K41 -> 34014.49537 | J14: ='IS Detail'!L41 -> 35715.22014 | K14: ='IS Detail'!M41 -> 37500.98115 | L14: ='IS Detail'!N41 -> 39376.03021
B15: % of Sales | D15: =D14/D11 -> 0.58766 | E15: 0.58766 | F15: 0.58766 | G15: 0.58766 | H15: 0.58766 | I15: 0.58766 | J15: 0.58766 | K15: 0.58766 | L15: 0.58766
B17: Gross Profit | D17: =D11-D14 -> 20617 | E17: 20617 | F17: 20617 | G17: 21647.85 | H17: 22730.2425 | I17: 23866.75463 | J17: 25060.09236 | K17: 26313.09697 | L17: 27628.75182
B18: % of Sales | D18: =D17/D11 -> 0.41234 | E18: 0.41234 | F18: 0.41234 | G18: 0.41234 | H18: 0.41234 | I18: 0.41234 | J18: 0.41234 | K18: 0.41234 | L18: 0.41234
B20: SG&A (Net of D & A) | D20: ='IS Detail'!F72 -> 8595.36 | E20: ='IS Detail'!G72 -> 8595.36 | F20: ='IS Detail'!H72 -> 8595.36 | G20: ='IS Detail'!I72 -> 9025.128 | H20: ='IS Detail'!J72 -> 9476.3844 | I20: ='IS Detail'!K72 -> 9950.20362 | J20: ='IS Detail'!L72 -> 10447.7138 | K20: ='IS Detail'!M72 -> 10970.09949 | L20: ='IS Detail'!N72 -> 11518.60447
B21: % of Sales | D21: =D20/D11 -> 0.1719072 | E21: 0.1719072 | F21: 0.1719072 | G21: 0.1719072 | H21: 0.1719072 | I21: 0.1719072 | J21: 0.1719072 | K21: 0.1719072 | L21: 0.1719072
B23: EBITDA | D23: =D17-D20 -> 12021.64 | E23: =E17-E20 -> 12021.64 | F23: 12021.64 | G23: 12622.722 | H23: 13253.8581 | I23: 13916.55101 | J23: 14612.37856 | K23: 15342.99748 | L23: 16110.14736
B24: % of Sales | D24: =D23/D11 -> 0.2404328 | E24: 0.2404328 | F24: 0.2404328 | G24: 0.2404328 | H24: 0.2404328 | I24: 0.2404328 | J24: 0.2404328 | K24: 0.2404328 | L24: 0.2404328
B26: Depreciation | D26: 1250 | E26: 1250 | F26: 1250 | G26: ='PP&E Schedule'!K26 -> 1192.857143 | H26: ='PP&E Schedule'!L26 -> 1442.857143 | I26: ='PP&E Schedule'!M26 -> 1692.857143 | J26: ='PP&E Schedule'!N26 -> 1942.857143 | K26: ='PP&E Schedule'!O26 -> 2228.571429 | L26: ='PP&E Schedule'!P26 -> 2514.285714
B27: Amortization | D27: 0 | E27: 0 | F27: 0 | G27: ='PP&E Schedule'!K35+'PP&E Schedule'!K31 -> 170 | H27: ='PP&E Schedule'!L35+'PP&E Schedule'!L31 -> 170 | I27: ='PP&E Schedule'!M35+'PP&E Schedule'!M31 -> 170 | J27: ='PP&E Schedule'!N35+'PP&E Schedule'!N31 -> 170 | K27: ='PP&E Schedule'!O35+'PP&E Schedule'!O31 -> 170 | L27: ='PP&E Schedule'!P35+'PP&E Schedule'!P31 -> 0
B29: EBIT | D29: =D23-D26-D27 -> 10771.64 | E29: =E23-E26-E27 -> 10771.64 | F29: 10771.64 | G29: 11259.86486 | H29: 11641.00096 | I29: 12053.69386 | J29: 12499.52141 | K29: 12944.42605 | L29: 13595.86164
B31: Interest Expense | C31: ON | D31: 2601 | E31: 2813 | F31: 2719 | G31: =IF($C$31="Off",0,'Debt Schedule'!E38) -> 2606.25 | H31: =IF($C$31="Off",0,'Debt Schedule'!F38) -> 2418.75 | I31: =IF($C$31="Off",0,'Debt Schedule'!G38) -> 2212.5 | J31: =IF($C$31="Off",0,'Debt Schedule'!H38) -> 1987.5 | K31: =IF($C$31="Off",0,'Debt Schedule'!I38) -> 1762.5 | L31: =IF($C$31="Off",0,'Debt Schedule'!J38) -> 1650
B33: Misc. Income / (Expense) | D33: 0 | E33: 0 | F33: 0 | G33: 0 | H33: 0 | I33: 0 | J33: 0 | K33: 0 | L33: 0
B35: Pretax Income | D35: =D29-D31+D33 -> 8170.64 | E35: =E29-E31+E33 -> 7958.64 | F35: 8052.64 | G35: =G29-G31+G33 -> 8653.614857 | H35: 9222.250957 | I35: 9841.193862 | J35: 10512.02141 | K35: 11181.92605 | L35: 11945.86164
B37: Income Tax Benefit | D37: 0 | E37: 0 | F37: 0 | G37: 0 | H37: 0 | I37: 0 | J37: 0 | K37: 0 | L37: 0
B39: Tax Expense | D39: 1129 | E39: 802 | F39: 797 | G39: =IF(G35>0,G40*(G35-G37),0) -> 3028.7652 | H39: 3227.787835 | I39: 3444.417852 | J39: 3679.207494 | K39: 3913.674119 | L39: 4181.051575
B40: Tax Rate | G40: 0.35 | H40: 0.35 | I40: 0.35 | J40: 0.35 | K40: 0.35 | L40: 0.35
B41: Franchise Tax | D41: 0 | E41: 0 | F41: 0 | G41: =G42*G17 -> 216.4785 | H41: 227.302425 | I41: 238.6675463 | J41: 250.6009236 | K41: 263.1309697 | L41: 276.2875182
B42: Tax Rate | G42: 0.01 | H42: 0.01 | I42: 0.01 | J42: 0.01 | K42: 0.01 | L42: 0.01
B44: Net Income | D44: =D35-SUM(D39,D41) -> 7041.64 | E44: =E35-SUM(E39,E41) -> 7156.64 | F44: 7255.64 | G44: =G35-SUM(G39,G41) -> 5408.371157 | H44: 5767.160697 | I44: 6158.108464 | J44: 6582.212994 | K44: 7005.120966 | L44: 7488.52255
B46: Adjustment to EBITDA | D46: =SUM('IS Detail'!F81:F83) -> 0 | E46: =SUM('IS Detail'!G81:G83) -> 0 | F46: =SUM('IS Detail'!H81:H83) -> 0 | G46: =SUM('IS Detail'!I81:I83) -> 0 | H46: =SUM('IS Detail'!J81:J83) -> 0 | I46: =SUM('IS Detail'!K81:K83) -> 0 | J46: =SUM('IS Detail'!L81:L83) -> 0 | K46: =SUM('IS Detail'!M81:M83) -> 0 | L46: =SUM('IS Detail'!N81:N83) -> 0
B48: Adjusted EBITDA | D48: =D23+D46 -> 12021.64 | E48: 12021.64 | F48: 12021.64 | G48: 12622.722 | H48: 13253.8581 | I48: 13916.55101 | J48: 14612.37856 | K48: 15342.99748 | L48: 16110.14736
B49: % of Sales | D49: =D48/D11 -> 0.2404328 | E49: 0.2404328 | F49: 0.2404328 | G49: 0.2404328 | H49: 0.2404328 | I49: 0.2404328 | J49: 0.2404328 | K49: 0.2404328 | L49: 0.2404328
B51: ='Sources & Uses'!B1 -> COMPANY
B52: BALANCE SHEET
P54: SOURCES AND USES
P55: SOURCES
P56: ='Sources & Uses'!I6 -> Common | Q56: ='Sources & Uses'!J6 -> 36350
P57: ='Sources & Uses'!I7 -> Sub Debt | Q57: ='Sources & Uses'!J7 -> 10000
P58: ='Sources & Uses'!I8 -> Senior Debt | Q58: ='Sources & Uses'!J8 -> 30000
P59: ='Sources & Uses'!I9 -> Line of Credit | Q59: ='Sources & Uses'!J9 -> 0
P60: Total | Q60: =SUM(Q56:Q59) -> 76350
P61: USES
P62: ='Sources & Uses'!L6 -> Seller Proceeds | Q62: ='Sources & Uses'!M6 -> 62500
P63: OLDCO Debt | Q63: ='Sources & Uses'!M7 -> 12500
P64: Trnsctn Expenses | Q64: ='Sources & Uses'!M8 -> 500
P65: ='Sources & Uses'!L9 -> Financing Fees (Sub Debt) | Q65: ='Sources & Uses'!M9 -> 200
P66: ='Sources & Uses'!L10 -> Financing Fees (Senior Debt) | Q66: ='Sources & Uses'!M10 -> 600
P67: ='Sources & Uses'!L11 -> Financing Fees (L.O.C.) | Q67: ='Sources & Uses'!M11 -> 50
P68: Cash | Q68: ='Sources & Uses'!M12 -> 0
P69: Total | Q69: =SUM(Q62:Q68) -> 76350
G70: Projections | P70: Recapitalization
D71: =D6 -> Historical | E71: =E6 -> Historical | F71: Post-Transaction | G71: =G6 -> 1 | H71: 2 | I71: 3 | J71: 4 | K71: 5 | L71: 6 | N71: Pre-Transaction | P71: Transaction & Financing Adjustments | S71: Post-Transaction
D72: =D8 -> 2015-12-31 | E72: 2016-12-31 | F72: 2017-12-31 | G72: 2018-12-31 | H72: 2019-12-31 | I72: 2020-12-31 | J72: 2021-12-31 | K72: 2022-12-31 | L72: 2023-12-31 | N72: =F8 -> 2017-12-31 | P72: Sources | Q72: Uses | S72: =F72 -> 2017-12-31
B73: ASSETS
B74: Current Assets
B75: Cash | D75: 4919 | E75: 3495 | F75: =SUM(N75:Q75) -> 0 | G75: =G193 -> 1186.4283 | H75: 2983.00614 | I75: 4666.359747 | J75: 7019.437284 | K75: 9826.537449 | L75: 17727.92387 | N75: 0 | P75: =Q60 -> 76350 | Q75: =-Q69+Q68 -> -76350 | S75: =F75 -> 0
B76: Accounts Receivable | D76: 2250 | E76: 2250 | F76: 2250 | G76: =(G11/G9*12)/365*G135 -> 2362.5 | H76: =H11/365*H135 -> 2480.625 | I76: =I11/365*I135 -> 2604.65625 | J76: =J11/365*J135 -> 2734.889063 | K76: =K11/365*K135 -> 2871.633516 | L76: =L11/365*L135 -> 3015.215191 | N76: 2250 | S76: 2250
B77: Inventory | D77: 3180 | E77: 3180 | F77: 3180 | G77: =(G$14/G$9*12)/365*G136 -> 3339 | H77: =H14/365*H136 -> 3505.95 | I77: =I14/365*I136 -> 3681.2475 | J77: =J14/365*J136 -> 3865.309875 | K77: =K14/365*K136 -> 4058.575369 | L77: =L14/365*L136 -> 4261.504137 | N77: 3180 | S77: 3180
B78: Prepaid Expenses | D78: 1400 | E78: 1400 | F78: 1400 | G78: =(G$14/G$9*12)/365*G137 -> 1470 | H78: =(H$14/H$9*12)/365*H137 -> 1543.5 | I78: =(I$14/I$9*12)/365*I137 -> 1620.675 | J78: =(J$14/J$9*12)/365*J137 -> 1701.70875 | K78: =(K$14/K$9*12)/365*K137 -> 1786.794188 | L78: =(L$14/L$9*12)/365*L137 -> 1876.133897 | N78: 1400 | S78: 1400
B79: Prepaids & Other Current Assets | D79: 0 | E79: 0 | F79: 0 | G79: =F79 -> 0 | H79: =G79 -> 0 | I79: =H79 -> 0 | J79: =I79 -> 0 | K79: =J79 -> 0 | L79: =K79 -> 0 | N79: 0 | S79: 0
B80: Other Current Asset | D80: 0 | E80: 0 | F80: 0 | G80: =F80 -> 0 | H80: =G80 -> 0 | I80: =H80 -> 0 | J80: =I80 -> 0 | K80: =J80 -> 0 | L80: =K80 -> 0 | N80: 0 | S80: 0
S81: 0
B82: Total Current Assets | D82: =SUM(D75:D80) -> 11749 | E82: 10325 | F82: 6830 | G82: 8357.9283 | H82: 10513.08114 | I82: 12572.9385 | J82: 15321.34497 | K82: 18543.54052 | L82: 26880.7771 | N82: =SUM(N75:N80) -> 6830 | P82: =SUM(P75:P80) -> 76350 | Q82: =SUM(Q75:Q80) -> -76350 | S82: 6830
B84: Property, Plant and Equipment
B85: PP&E Item 1 | D85: 12000 | E85: 12000 | F85: =SUM(N85:Q85) -> 12000 | G85: ='PP&E Schedule'!K28 -> 12557.14286 | H85: ='PP&E Schedule'!L28 -> 12864.28571 | I85: ='PP&E Schedule'!M28 -> 12921.42857 | J85: ='PP&E Schedule'!N28 -> 12728.57143 | K85: ='PP&E Schedule'!O28 -> 12500 | L85: ='PP&E Schedule'!P28 -> 11985.71429 | N85: 12000 | S85: =F85 -> 12000
S86: 0
B87: Total Property, Plant and Equipment | D87: =SUM(D85:D85) -> 12000 | E87: 12000 | F87: 12000 | G87: 12557.14286 | H87: 12864.28571 | I87: 12921.42857 | J87: 12728.57143 | K87: 12500 | L87: 11985.71429 | N87: =SUM(N85:N85) -> 12000 | S87: 12000
B89: Other Assets
B90: Capitalized Transaction Costs | D90: 0 | E90: 0 | F90: =SUM(N90:Q90) -> 850 | G90: ='PP&E Schedule'!K34 -> 680 | H90: ='PP&E Schedule'!L34 -> 510 | I90: ='PP&E Schedule'!M34 -> 340 | J90: ='PP&E Schedule'!N34 -> 170 | K90: ='PP&E Schedule'!O34 -> 0 | L90: ='PP&E Schedule'!P34 -> 0 | N90: 0 | Q90: =Q65+Q66+Q67 -> 850 | S90: =F90 -> 850
B91: Goodwill | D91: 3301 | E91: 3301 | F91: 62766 | G91: ='PP&E Schedule'!K32 -> 62766 | H91: ='PP&E Schedule'!L32 -> 62766 | I91: ='PP&E Schedule'!M32 -> 62766 | J91: ='PP&E Schedule'!N32 -> 62766 | K91: ='PP&E Schedule'!O32 -> 62766 | L91: ='PP&E Schedule'!P32 -> 62766 | N91: 3301 | Q91: =Q62-N129 -> 59465 | S91: 62766
B92: Trademarks | D92: 0 | E92: 0 | F92: 0 | G92: =F92 -> 0 | H92: =G92 -> 0 | I92: 0 | J92: 0 | K92: 0 | L92: 0 | N92: 0 | S92: 0
B93: Intangibles | D93: 0 | E93: 0 | F93: 0 | G93: =F93 -> 0 | H93: =G93 -> 0 | I93: =H93 -> 0 | J93: =I93 -> 0 | K93: =J93 -> 0 | L93: =K93 -> 0 | N93: 0 | S93: 0
B94: Other Long Term Asset | D94: 450 | E94: 450 | F94: 450 | G94: 450 | H94: 450 | I94: 450 | J94: 450 | K94: 450 | L94: 450 | N94: 450 | S94: 450
B95: Other Intangible Assets | D95: 0 | E95: 0 | F95: 0 | G95: =F95 -> 0 | H95: =G95 -> 0 | I95: 0 | J95: 0 | K95: 0 | L95: 0 | N95: 0 | S95: 0
S96: 0
B97: Total Other Assets | D97: =SUM(D89:D95) -> 3751 | E97: =SUM(E89:E95) -> 3751 | F97: =SUM(N97:Q97) -> 64066 | G97: =SUM(G90:G95) -> 63896 | H97: 63726 | I97: 63556 | J97: 63386 | K97: 63216 | L97: 63216 | N97: =SUM(N89:N95) -> 3751 | P97: =SUM(P85:P95) -> 0 | Q97: =SUM(Q85:Q95) -> 60315 | S97: 64066
S98: 0
B99: TOTAL ASSETS | D99: =D97+D87+D82 -> 27500 | E99: 26076 | F99: 82896 | G99: =G97+G87+G82 -> 84811.07116 | H99: 87103.36685 | I99: 89050.36707 | J99: 91435.9164 | K99: 94259.54052 | L99: 102082.4914 | N99: =N97+N87+N82 -> 22581 | P99: =P97+P82 -> 76350 | Q99: =Q97+Q82 -> -16035 | S99: 82896
B101: LIABILITIES
B102: Current Liabilities
B103: Accounts Payable - Trade | D103: 1537 | E103: 1613 | F103: =SUM(N103:Q103) -> 1583 | G103: =(G$14/G$9*12)/365*G139 -> 1656.55 | H103: =H14/365*H139 -> 1739.3775 | I103: =I14/365*I139 -> 1826.346375 | J103: =J14/365*J139 -> 1917.663694 | K103: =K14/365*K139 -> 2013.546878 | L103: =L14/365*L139 -> 2114.224222 | N103: 1583 | S103: =F103 -> 1583
B104: Accruals | D104: 3663 | E104: 3663 | F104: 3663 | G104: =(G$14/G$9*12)/365*G138 -> 3846.15 | H104: 4038.4575 | I104: 4240.380375 | J104: 4452.399394 | K104: 4675.019363 | L104: 4908.770332 | N104: 3663 | S104: 3663
B105: Current Maturities of LT Debt | D105: 1500 | E105: 1500 | F105: 0 | G105: =F105 -> 0 | H105: =G105 -> 0 | I105: =H105 -> 0 | J105: =I105 -> 0 | K105: =J105 -> 0 | L105: =K105 -> 0 | N105: 0 | S105: 0
B106: Other Liability | D106: 0 | E106: 0 | F106: 0 | G106: =F106 -> 0 | H106: 0 | I106: 0 | J106: 0 | K106: 0 | L106: 0 | N106: 0 | S106: 0
S107: 0
B108: Total Current Liabilities | D108: =SUM(D102:D106) -> 6700 | E108: =SUM(E102:E106) -> 6776 | F108: =SUM(F103:F106) -> 5246 | G108: 5502.7 | H108: 5777.835 | I108: 6066.72675 | J108: 6370.063088 | K108: 6688.566242 | L108: 7022.994554 | N108: =SUM(N102:N106) -> 5246 | P108: =SUM(P102:P106) -> 0 | Q108: =SUM(Q102:Q106) -> 0 | S108: 5246
B110: Long Term Liabilities
B111: Accrued Interest | D111: 0 | E111: 0 | F111: =SUM(N111:Q111) -> 0 | G111: =F111 -> 0 | H111: =G111 -> 0 | I111: 0 | J111: 0 | K111: 0 | L111: 0 | N111: 0 | S111: =F111 -> 0
B112: Seniority Premium | D112: 1800 | E112: 1800 | F112: =SUM(N112:Q112) -> 1800 | G112: =F112 -> 1800 | H112: 1800 | I112: 1800 | J112: 1800 | K112: 1800 | L112: 1800 | N112: 1800 | S112: 1800
B114: OLDCO Notes Payable - LOC | D114: 0 | E114: 0 | F114: =SUM(N114:Q114) -> 0 | G114: =F114 -> 0 | H114: =G114 -> 0 | I114: 0 | J114: 0 | K114: 0 | L114: 0 | N114: 0 | Q114: =-N114 -> 0 | S114: =F114 -> 0
B115: OLDCO Notes Payable - Stockholders | D115: 0 | E115: 0 | F115: 0 | G115: 0 | H115: 0 | I115: 0 | J115: 0 | K115: 0 | L115: 0 | N115: 0 | Q115: 0 | S115: 0
B116: OLDCO Notes Payable | D116: 14000 | E116: 12500 | F116: 0 | G116: =F116 -> 0 | H116: 0 | I116: 0 | J116: 0 | K116: 0 | L116: 0 | N116: 12500 | Q116: -12500 | S116: 0
B118: NEWCO Revolving Line of Credit | D118: 0 | E118: 0 | F118: =SUM(N118:Q118) -> 0 | G118: ='Debt Schedule'!E18 -> 0 | H118: ='Debt Schedule'!F18 -> 0 | I118: ='Debt Schedule'!G18 -> 0 | J118: ='Debt Schedule'!H18 -> 0 | K118: ='Debt Schedule'!I18 -> 0 | L118: ='Debt Schedule'!J18 -> 0 | N118: 0 | P118: =Q59 -> 0 | S118: =F118 -> 0
B119: NEWCO Sub Debt | D119: 0 | E119: 0 | F119: 10000 | G119: ='Debt Schedule'!E32 -> 10000 | H119: ='Debt Schedule'!F32 -> 10000 | I119: ='Debt Schedule'!G32 -> 10000 | J119: ='Debt Schedule'!H32 -> 10000 | K119: ='Debt Schedule'!I32 -> 10000 | L119: ='Debt Schedule'!J32 -> 10000 | N119: 0 | P119: =Q57 -> 10000 | S119: 10000
B120: NEWCO Senior Debt | D120: 0 | E120: 0 | F120: 30000 | G120: ='Debt Schedule'!E24 -> 26250 | H120: ='Debt Schedule'!F24 -> 22500 | I120: ='Debt Schedule'!G24 -> 18000 | J120: ='Debt Schedule'!H24 -> 13500 | K120: ='Debt Schedule'!I24 -> 9000 | L120: ='Debt Schedule'!J24 -> 9000 | N120: 0 | P120: =Q58 -> 30000 | S120: 30000
B121: Total Debt | D121: =SUM(D114:D116,D118:D120) -> 14000 | E121: 12500 | F121: 40000 | G121: =SUM(G114:G116,G118:G120) -> 36250 | H121: 32500 | I121: 28000 | J121: 23500 | K121: 19000 | L121: 19000 | N121: =SUM(N114:N120) -> 12500 | P121: =SUM(P114:P120) -> 40000 | Q121: =SUM(Q114:Q120) -> -12500 | S121: =F121 -> 40000
B123: TOTAL LIABILITIES | D123: =D121+D108+D111+D112 -> 22500 | E123: 21076 | F123: 47046 | G123: =G121+G108+G111+G112 -> 43552.7 | H123: 40077.835 | I123: 35866.72675 | J123: 31670.06309 | K123: 27488.56624 | L123: 27822.99455 | N123: =N121+N108+N111+N112 -> 19546 | P123: =P121+P108+P111+P112 -> 40000 | Q123: =Q121+Q108+Q111+Q112 -> -12500 | S123: =S121+S108+S111+S112 -> 47046
B125: EQUITY
B126: Common Stock | D126: 5000 | E126: 5000 | F126: =SUM(N126:Q126) -> 36350 | G126: =F126 -> 36350 | H126: =G126 -> 36350 | I126: 36350 | J126: 36350 | K126: 36350 | L126: 36350 | N126: =5000-1965 -> 3035 | P126: =Q56 -> 36350 | Q126: =-N126 -> -3035 | S126: =F126 -> 36350
B127: Retained Earnings | D127: 0 | E127: 0 | F127: -500 | G127: =F127+G44 -> 4908.371157 | H127: 10675.53185 | I127: 16833.64032 | J127: 23415.85331 | K127: 30420.97428 | L127: 37909.49683 | N127: 0 | Q127: =-Q64 -> -500 | S127: -500
S128: 0
B129: TOTAL EQUITY | D129: =SUM(D126:D127) -> 5000 | E129: 5000 | F129: 35850 | G129: 41258.37116 | H129: 47025.53185 | I129: 53183.64032 | J129: 59765.85331 | K129: 66770.97428 | L129: 74259.49683 | N129: =SUM(N126:N127) -> 3035 | P129: =SUM(P126:P127) -> 36350 | Q129: =SUM(Q126:Q127) -> -3535 | S129: =SUM(S126:S127) -> 35850
S130: 0
B131: TOTAL LIABILITIES & EQUITY | D131: =D129+D123 -> 27500 | E131: 26076 | F131: 82896 | G131: 84811.07116 | H131: 87103.36685 | I131: 89050.36707 | J131: 91435.9164 | K131: 94259.54052 | L131: 102082.4914 | N131: =N129+N123 -> 22581 | P131: =P129+P123 -> 76350 | Q131: =Q129+Q123 -> -16035 | S131: 82896
B132: Check | D132: =ROUND(D131-D99,2) -> 0 | E132: 0 | F132: 0 | G132: 0 | H132: 0 | I132: 0 | J132: 0 | K132: 0 | L132: 0 | N132: =ROUND(N131-N99,2) -> 0 | P132: =ROUND(P131-P99,2) -> 0 | Q132: =ROUND(Q131-Q99,2) -> 0 | S132: =ROUND(S131-S99,2) -> 0
B134: BALANCE SHEET ASSUMPTIONS
B135: AR Days | D135: =D76/(D11/365) -> 16.425 | E135: =E76/(E11/365) -> 16.425 | F135: =F76/((F11/F9*12)/365) -> 16.425 | G135: =AVERAGE($D135:$F135) -> 16.425 | H135: =G135 -> 16.425 | I135: 16.425 | J135: 16.425 | K135: 16.425 | L135: 16.425
B136: Inventory | D136: =D77/(D$14/365) -> 39.50243338 | E136: =E77/(E14/365) -> 39.50243338 | F136: =F77/((F$14/F$9*12)/365) -> 39.50243338 | G136: =AVERAGE($D136:$F136) -> 39.50243338 | H136: 39.50243338 | I136: 39.50243338 | J136: 39.50243338 | K136: 39.50243338 | L136: 39.50243338
B137: Prepaid Expenses | D137: =D78/(D$14/365) -> 17.39100841 | E137: =E78/(E$14/365) -> 17.39100841 | F137: =F78/((F$14/F$9*12)/365) -> 17.39100841 | G137: =AVERAGE($D137:$F137) -> 17.39100841 | H137: =AVERAGE($D137:$F137) -> 17.39100841 | I137: 17.39100841 | J137: 17.39100841 | K137: 17.39100841 | L137: 17.39100841
B138: Accruals | D138: =D104/(D14/365) -> 45.50233128 | E138: =E104/(E14/365) -> 45.50233128 | F138: =F104/((F$14/F$9*12)/365) -> 45.50233128 | G138: =AVERAGE($D138:$F138) -> 45.50233128 | H138: 45.50233128 | I138: 45.50233128 | J138: 45.50233128 | K138: 45.50233128 | L138: 45.50233128
B139: AP Days | D139: =D103/(D14/365) -> 19.0928428 | E139: =E103/(E14/365) -> 20.03692611 | F139: =F103/((F14/F9*12)/365) -> 19.66426165 | G139: =AVERAGE($D139:$F139) -> 19.59801019 | H139: 19.59801019 | I139: 19.59801019 | J139: 19.59801019 | K139: 19.59801019 | L139: 19.59801019
B142: ='Sources & Uses'!B1 -> COMPANY
B143: CASH FLOW STATEMENT
G146: Projections
G147: =G6 -> 1 | H147: 2 | I147: 3 | J147: 4 | K147: 5 | L147: 6
G148: 2018 | H148: 2019 | I148: 2020 | J148: 2021 | K148: 2022 | L148: 2023
G149: 2018-12-31 | H149: 2019-12-31 | I149: 2020-12-31 | J149: 2021-12-31 | K149: 2022-12-31 | L149: 2023-12-31
G150: 12 | H150: 12 | I150: 12 | J150: 12 | K150: 12 | L150: 12
B152: Cash Flow from Operating Activities
B154: Net Income | G154: =G44 -> 5408.371157 | H154: 5767.160697 | I154: 6158.108464 | J154: 6582.212994 | K154: 7005.120966 | L154: 7488.52255
B156: Add Back Non-Cash Items
B157: Depreciation | G157: ='PP&E Schedule'!K26 -> 1192.857143 | H157: ='PP&E Schedule'!L26 -> 1442.857143 | I157: ='PP&E Schedule'!M26 -> 1692.857143 | J157: ='PP&E Schedule'!N26 -> 1942.857143 | K157: ='PP&E Schedule'!O26 -> 2228.571429 | L157: ='PP&E Schedule'!P26 -> 2514.285714
B158: Amortization | G158: ='PP&E Schedule'!K35+'PP&E Schedule'!K31 -> 170 | H158: ='PP&E Schedule'!L35+'PP&E Schedule'!L31 -> 170 | I158: ='PP&E Schedule'!M35+'PP&E Schedule'!M31 -> 170 | J158: ='PP&E Schedule'!N35+'PP&E Schedule'!N31 -> 170 | K158: ='PP&E Schedule'!O35+'PP&E Schedule'!O31 -> 170 | L158: ='PP&E Schedule'!P35+'PP&E Schedule'!P31 -> 0
B159: Total Non-Cash Adjustments | G159: =SUM(G157:G158) -> 1362.857143 | H159: 1612.857143 | I159: 1862.857143 | J159: 2112.857143 | K159: 2398.571429 | L159: 2514.285714
B161: Operating Cash Flow Before Working Capital | G161: =G154+G159 -> 6771.2283 | H161: 7380.01784 | I161: 8020.965607 | J161: 8695.070137 | K161: 9403.692394 | L161: 10002.80826
B163: Changes in Working Capital
B164: Accounts Receivable | G164: =F76-G76 -> -112.5 | H164: -118.125 | I164: -124.03125 | J164: -130.2328125 | K164: -136.7444531 | L164: -143.5816758
B165: Inventory | G165: -159 | H165: -166.95 | I165: -175.2975 | J165: -184.062375 | K165: -193.2654937 | L165: -202.9287684
B166: Prepaid Expenses | G166: -70 | H166: -73.5 | I166: -77.175 | J166: -81.03375 | K166: -85.0854375 | L166: -89.33970938
B167: Accounts Payable | G167: =G103-F103 -> 73.55 | H167: 82.8275 | I167: 86.968875 | J167: 91.31731875 | K167: 95.88318469 | L167: 100.6773439
B168: Accruals Expenses | G168: 183.15 | H168: 192.3075 | I168: 201.922875 | J168: 212.0190188 | K168: 222.6199697 | L168: 233.7509682
B169: Total Changes in Working Capital | G169: =SUM(G164:G168) -> -84.8 | H169: -83.44 | I169: -87.612 | J169: -91.9926 | K169: -96.59223 | L169: -101.4218415
B171: Cash Flow from Operations | G171: =G161+G169 -> 6686.4283 | H171: 7296.57784 | I171: 7933.353607 | J171: 8603.077537 | K171: 9307.100164 | L171: 9901.386422
B173: Cash Flow from Investing Activities
B175: Investment Activities
B176: Capital Expenditures | G176: =-'PP&E Schedule'!K12 -> -1750 | H176: =-'PP&E Schedule'!L12 -> -1750 | I176: =-'PP&E Schedule'!M12 -> -1750 | J176: =-'PP&E Schedule'!N12 -> -1750 | K176: =-'PP&E Schedule'!O12 -> -2000 | L176: =-'PP&E Schedule'!P12 -> -2000
B178: Cash Flow from Investing | G178: =SUM(G176:G176) -> -1750 | H178: -1750 | I178: -1750 | J178: -1750 | K178: -2000 | L178: -2000
B180: Cash Flow from Financing Activities
B182: Senior Debt - Scheduled | G182: =-'Debt Schedule'!E23 -> -3750 | H182: =-'Debt Schedule'!F23 -> -3750 | I182: =-'Debt Schedule'!G23 -> -4500 | J182: =-'Debt Schedule'!H23 -> -4500 | K182: =-'Debt Schedule'!I23 -> -4500 | L182: =-'Debt Schedule'!J23 -> 0
B183: Sub Debt - Scheduled | G183: =-'Debt Schedule'!E31 -> 0 | H183: =-'Debt Schedule'!F31 -> 0 | I183: =-'Debt Schedule'!G31 -> 0 | J183: =-'Debt Schedule'!H31 -> 0 | K183: =-'Debt Schedule'!I31 -> 0 | L183: =-'Debt Schedule'!J31 -> 0
B185: FCF Prior to Revovler (Cash Available for Optional Debt Repayment) | G185: =G171+G178+G182+G183 -> 1186.4283 | H185: =H171+H178+H182+H183 -> 1796.57784 | I185: 1683.353607 | J185: 2353.077537 | K185: 2807.100164 | L185: 7901.386422 | N185: Note: This row has been added to demonstrate how the cash sweep functions.
B187: Revolving Line of Credit | G187: ='Debt Schedule'!E18-'Debt Schedule'!D18 -> 0 | H187: ='Debt Schedule'!F18-'Debt Schedule'!E18 -> 0 | I187: ='Debt Schedule'!G18-'Debt Schedule'!F18 -> 0 | J187: ='Debt Schedule'!H18-'Debt Schedule'!G18 -> 0 | K187: ='Debt Schedule'!I18-'Debt Schedule'!H18 -> 0 | L187: ='Debt Schedule'!J18-'Debt Schedule'!I18 -> 0
B189: Cash Flow from Financing Activities | G189: =G182+G183+G187 -> -3750 | H189: =H182+H183+H187 -> -3750 | I189: -4500 | J189: -4500 | K189: -4500 | L189: 0
B191: Net Cash Flow | G191: =G171+G178+G189 -> 1186.4283 | H191: 1796.57784 | I191: 1683.353607 | J191: 2353.077537 | K191: 2807.100164 | L191: 7901.386422
B192: Beginning Cash Balance | G192: =F75 -> 0 | H192: =G193 -> 1186.4283 | I192: =H193 -> 2983.00614 | J192: =I193 -> 4666.359747 | K192: =J193 -> 7019.437284 | L192: =K193 -> 9826.537449
B193: Ending Cash Balance | G193: =G191+G192 -> 1186.4283 | H193: 2983.00614 | I193: 4666.359747 | J193: 7019.437284 | K193: 9826.537449 | L193: 17727.92387

Sheet IS Detail
B1: ='Sources & Uses'!B1 -> COMPANY
B2: INCOME STATEMENT DETAIL | P2: 1 | W2: 2 | AD2: 3
B4: SCENARIO | D4: ='Exit Analysis'!K1 -> 1
I5: Projections | P5: Projections | W5: Projections | AD5: Projections
F6: =G6 -> Historical | G6: Historical | H6: Projected | I6: ='Post-Transaction Fncl Sts'!G6 -> 1 | J6: =I6+1 -> 2 | K6: =J6+1 -> 3 | L6: =K6+1 -> 4 | M6: =L6+1 -> 5 | N6: =M6+1 -> 6 | P6: =I6 -> 1 | Q6: =J6 -> 2 | R6: 3 | S6: 4 | T6: 5 | U6: 6 | W6: =P6 -> 1 | X6: =Q6 -> 2 | Y6: =R6 -> 3 | Z6: =S6 -> 4 | AA6: =T6 -> 5 | AB6: =U6 -> 6 | AD6: =W6 -> 1 | AE6: =X6 -> 2 | AF6: =Y6 -> 3 | AG6: =Z6 -> 4 | AH6: =AA6 -> 5 | AI6: =AB6 -> 6
F7: =YEAR(F8) -> 2015 | G7: 2016 | H7: 2017 | I7: 2018 | J7: 2019 | K7: 2020 | L7: 2021 | M7: 2022 | N7: 2023 | P7: =I7 -> 2018 | Q7: 2019 | R7: 2020 | S7: 2021 | T7: 2022 | U7: 2023 | W7: =P7 -> 2018 | X7: 2019 | Y7: 2020 | Z7: 2021 | AA7: 2022 | AB7: 2023 | AD7: =W7 -> 2018 | AE7: 2019 | AF7: 2020 | AG7: 2021 | AH7: 2022 | AI7: 2023
F8: =DATE(YEAR(G8)-1,MONTH(G8),DAY(G8)) -> 2015-12-31 | G8: ='Post-Transaction Fncl Sts'!E8 -> 2016-12-31 | H8: ='Post-Transaction Fncl Sts'!F8 -> 2017-12-31 | I8: ='Post-Transaction Fncl Sts'!G8 -> 2018-12-31 | J8: =DATE(YEAR(I8)+1,MONTH(I8),DAY(I8)) -> 2019-12-31 | K8: =DATE(YEAR(J8)+1,MONTH(J8),DAY(J8)) -> 2020-12-31 | L8: =DATE(YEAR(K8)+1,MONTH(K8),DAY(K8)) -> 2021-12-31 | M8: =DATE(YEAR(L8)+1,MONTH(L8),DAY(L8)) -> 2022-12-31 | N8: =DATE(YEAR(M8)+1,MONTH(M8),DAY(M8)) -> 2023-12-31 | P8: 2018-12-31 | Q8: 2019-12-31 | R8: 2020-12-31 | S8: 2021-12-31 | T8: 2022-12-31 | U8: 2023-12-31 | W8: 2018-12-31 | X8: 2019-12-31 | Y8: 2020-12-31 | Z8: 2021-12-31 | AA8: 2022-12-31 | AB8: 2023-12-31 | AD8: 2018-12-31 | AE8: 2019-12-31 | AF8: 2020-12-31 | AG8: 2021-12-31 | AH8: 2022-12-31 | AI8: 2023-12-31
F9: 12 | G9: =DAYS360(F8,G8)/30 -> 12 | H9: =DAYS360(G8,H8)/30 -> 12 | I9: =IF(MONTH(H8)=12,12,DAYS360(H8,I8)/30) -> 12 | J9: =DAYS360(I8,J8)/30 -> 12 | K9: =DAYS360(J8,K8)/30 -> 12 | L9: =DAYS360(K8,L8)/30 -> 12 | M9: =DAYS360(L8,M8)/30 -> 12 | N9: =DAYS360(M8,N8)/30 -> 12 | P9: 12 | Q9: 12 | R9: 12 | S9: 12 | T9: 12 | U9: 12 | W9: 12 | X9: 12 | Y9: 12 | Z9: 12 | AA9: 12 | AB9: 12 | AD9: 12 | AE9: 12 | AF9: 12 | AG9: 12 | AH9: 12 | AI9: 12
B11: Net Sales
B12: 1 | F12: 20000 | G12: 20000 | H12: 20000 | I12: =CHOOSE($D$4,P12,W12,AD12) -> 21000 | J12: =CHOOSE($D$4,Q12,X12,AE12) -> 22050 | K12: 23152.5 | L12: 24310.125 | M12: 25525.63125 | N12: 26801.91281 | P12: =(H12)*(1+P19) -> 21000 | Q12: =(P12)*(1+Q19) -> 22050 | R12: 23152.5 | S12: 24310.125 | T12: 25525.63125 | U12: 26801.91281 | W12: =(H12)*(1+W19) -> 22000 | X12: =(W12)*(1+X19) -> 24200 | Y12: 26620 | Z12: 29282 | AA12: 32210.2 | AB12: 35431.22 | AD12: =(H12)*(1+AD19) -> 24000 | AE12: =(AD12)*(1+AE19) -> 28800 | AF12: 34560 | AG12: 41472 | AH12: 49766.4 | AI12: 59719.68
B13: 2 | F13: 10000 | G13: 10000 | H13: 10000 | I13: =CHOOSE($D$4,P13,W13,AD13) -> 10500 | J13: =CHOOSE($D$4,Q13,X13,AE13) -> 11025 | K13: =CHOOSE($D$4,R13,Y13,AF13) -> 11576.25 | L13: =CHOOSE($D$4,S13,Z13,AG13) -> 12155.0625 | M13: =CHOOSE($D$4,T13,AA13,AH13) -> 12762.81563 | N13: =CHOOSE($D$4,U13,AB13,AI13) -> 13400.95641 | P13: =(H13)*(1+P20) -> 10500 | Q13: 11025 | R13: 11576.25 | S13: 12155.0625 | T13: 12762.81563 | U13: 13400.95641 | W13: =(H13)*(1+W20) -> 11000 | X13: 12100 | Y13: 13310 | Z13: 14641 | AA13: 16105.1 | AB13: 17715.61 | AD13: =(H13)*(1+AD20) -> 12000 | AE13: 14400 | AF13: 17280 | AG13: 20736 | AH13: 24883.2 | AI13: 29859.84
B14: 3 | F14: 10000 | G14: 10000 | H14: 10000 | I14: 10500 | J14: 11025 | K14: 11576.25 | L14: 12155.0625 | M14: 12762.81563 | N14: 13400.95641 | P14: =(H14)*(1+P21) -> 10500 | Q14: 11025 | R14: 11576.25 | S14: 12155.0625 | T14: 12762.81563 | U14: 13400.95641 | W14: =(H14)*(1+W21) -> 11000 | X14: 12100 | Y14: 13310 | Z14: 14641 | AA14: 16105.1 | AB14: 17715.61 | AD14: =(H14)*(1+AD21) -> 12000 | AE14: 14400 | AF14: 17280 | AG14: 20736 | AH14: 24883.2 | AI14: 29859.84
B15: 4 | F15: 5000 | G15: 5000 | H15: 5000 | I15: 5250 | J15: 5512.5 | K15: 5788.125 | L15: 6077.53125 | M15: 6381.407813 | N15: 6700.478203 | P15: =(H15)*(1+P22) -> 5250 | Q15: 5512.5 | R15: 5788.125 | S15: 6077.53125 | T15: 6381.407813 | U15: 6700.478203 | W15: =(H15)*(1+W22) -> 5500 | X15: 6050 | Y15: 6655 | Z15: 7320.5 | AA15: 8052.55 | AB15: 8857.805 | AD15: =(H15)*(1+AD22) -> 6000 | AE15: 7200 | AF15: 8640 | AG15: 10368 | AH15: 12441.6 | AI15: 14929.92
B16: 5 | F16: 5000 | G16: 5000 | H16: 5000 | I16: 5250 | J16: 5512.5 | K16: 5788.125 | L16: 6077.53125 | M16: 6381.407813 | N16: 6700.478203 | P16: =(H16)*(1+P23) -> 5250 | Q16: 5512.5 | R16: 5788.125 | S16: 6077.53125 | T16: 6381.407813 | U16: 6700.478203 | W16: =(H16)*(1+W23) -> 5500 | X16: 6050 | Y16: 6655 | Z16: 7320.5 | AA16: 8052.55 | AB16: 8857.805 | AD16: =(H16)*(1+AD23) -> 6000 | AE16: 7200 | AF16: 8640 | AG16: 10368 | AH16: 12441.6 | AI16: 14929.92
B18: Total Growth
B19: =B12 -> 1 | F19: =IF(ISNUMBER(F12/#REF!-1),(F12/#REF!-1),"NA") -> NA | G19: =IF(ISNUMBER(G12/F12-1),(G12/F12-1),"NA") -> 0 | H19: 0 | I19: =CHOOSE($D$4,P19,W19,AD19) -> 0.05 | J19: =CHOOSE($D$4,Q19,X19,AE19) -> 0.05 | K19: =CHOOSE($D$4,R19,Y19,AF19) -> 0.05 | L19: =CHOOSE($D$4,S19,Z19,AG19) -> 0.05 | M19: =CHOOSE($D$4,T19,AA19,AH19) -> 0.05 | N19: =CHOOSE($D$4,U19,AB19,AI19) -> 0.05 | P19: 0.05 | Q19: 0.05 | R19: 0.05 | S19: 0.05 | T19: 0.05 | U19: 0.05 | W19: 0.1 | X19: 0.1 | Y19: 0.1 | Z19: 0.1 | AA19: 0.1 | AB19: 0.1 | AD19: 0.2 | AE19: 0.2 | AF19: 0.2 | AG19: 0.2 | AH19: 0.2 | AI19: 0.2
B20: =B13 -> 2 | F20: =IF(ISNUMBER(F13/#REF!-1),(F13/#REF!-1),"NA") -> NA | G20: 0 | H20: 0 | I20: 0.05 | J20: 0.05 | K20: 0.05 | L20: 0.05 | M20: 0.05 | N20: 0.05 | P20: 0.05 | Q20: 0.05 | R20: 0.05 | S20: 0.05 | T20: 0.05 | U20: 0.05 | W20: 0.1 | X20: 0.1 | Y20: 0.1 | Z20: 0.1 | AA20: 0.1 | AB20: 0.1 | AD20: 0.2 | AE20: 0.2 | AF20: 0.2 | AG20: 0.2 | AH20: 0.2 | AI20: 0.2
B21: =B14 -> 3 | F21: =IF(ISNUMBER(F14/#REF!-1),(F14/#REF!-1),"NA") -> NA | G21: 0 | H21: 0 | I21: 0.05 | J21: 0.05 | K21: 0.05 | L21: 0.05 | M21: 0.05 | N21: 0.05 | P21: 0.05 | Q21: 0.05 | R21: 0.05 | S21: 0.05 | T21: 0.05 | U21: 0.05 | W21: 0.1 | X21: 0.1 | Y21: 0.1 | Z21: 0.1 | AA21: 0.1 | AB21: 0.1 | AD21: 0.2 | AE21: 0.2 | AF21: 0.2 | AG21: 0.2 | AH21: 0.2 | AI21: 0.2
B22: =B15 -> 4 | F22: =IF(ISNUMBER(F15/#REF!-1),(F15/#REF!-1),"NA") -> NA | G22: 0 | H22: 0 | I22: 0.05 | J22: 0.05 | K22: 0.05 | L22: 0.05 | M22: 0.05 | N22: 0.05 | P22: 0.05 | Q22: 0.05 | R22: 0.05 | S22: 0.05 | T22: 0.05 | U22: 0.05 | W22: 0.1 | X22: 0.1 | Y22: 0.1 | Z22: 0.1 | AA22: 0.1 | AB22: 0.1 | AD22: 0.2 | AE22: 0.2 | AF22: 0.2 | AG22: 0.2 | AH22: 0.2 | AI22: 0.2
B23: =B16 -> 5 | F23: =IF(ISNUMBER(F16/#REF!-1),(F16/#REF!-1),"NA") -> NA | G23: 0 | H23: 0 | I23: 0.05 | J23: 0.05 | K23: 0.05 | L23: 0.05 | M23: 0.05 | N23: 0.05 | P23: 0.05 | Q23: 0.05 | R23: 0.05 | S23: 0.05 | T23: 0.05 | U23: 0.05 | W23: 0.1 | X23: 0.1 | Y23: 0.1 | Z23: 0.1 | AA23: 0.1 | AB23: 0.1 | AD23: 0.2 | AE23: 0.2 | AF23: 0.2 | AG23: 0.2 | AH23: 0.2 | AI23: 0.2
B25: Net Sales Scenario | F25: =SUM(F12:F16) -> 50000 | G25: 50000 | H25: 50000 | I25: 52500 | J25: 55125 | K25: 57881.25 | L25: 60775.3125 | M25: 63814.07813 | N25: 67004.78203 | P25: =SUM(P12:P16) -> 52500 | Q25: 55125 | R25: 57881.25 | S25: 60775.3125 | T25: 63814.07813 | U25: 67004.78203 | W25: =SUM(W12:W16) -> 55000 | X25: 60500 | Y25: 66550 | Z25: 73205 | AA25: 80525.5 | AB25: 88578.05 | AD25: =SUM(AD12:AD16) -> 60000 | AE25: 72000 | AF25: 86400 | AG25: 103680 | AH25: 124416 | AI25: 149299.2
B26: Growth (%) | F26: NA | G26: =G25/F25-1 -> 0 | H26: =IF(H9<>12,"NM",H25/G25-1) -> 0 | I26: =IF(I9<>12,"NM",I25/H25-1) -> 0.05 | J26: =IF(I9<>12,J25/SUM(H25,I25)-1,J25/I25-1) -> 0.05 | K26: =K25/J25-1 -> 0.05 | L26: =L25/K25-1 -> 0.05 | M26: =M25/L25-1 -> 0.05 | N26: =N25/M25-1 -> 0.05 | P26: NM | Q26: =IF(P9<>12,Q25/SUM(#REF!,P25)-1,Q25/P25-1) -> 0.05 | R26: =R25/Q25-1 -> 0.05 | S26: =S25/R25-1 -> 0.05 | T26: =T25/S25-1 -> 0.05 | U26: =U25/T25-1 -> 0.05 | W26: NM | X26: =IF(W9<>12,X25/SUM(#REF!,W25)-1,X25/W25-1) -> 0.1 | Y26: =Y25/X25-1 -> 0.1 | Z26: =Z25/Y25-1 -> 0.1 | AA26: =AA25/Z25-1 -> 0.1 | AB26: =AB25/AA25-1 -> 0.1 | AD26: NM | AE26: =IF(AD9<>12,AE25/SUM(#REF!,AD25)-1,AE25/AD25-1) -> 0.2 | AF26: =AF25/AE25-1 -> 0.2 | AG26: =AG25/AF25-1 -> 0.2 | AH26: =AH25/AG25-1 -> 0.2 | AI26: =AI25/AH25-1 -> 0.2
B28: COGS (Net of D&A) | D28: SL / %
B29: Base Salaries | D29: % | F29: 9600 | G29: 9600 | H29: =IF($D29="%",H$25*H35,G29) -> 9600 | I29: =IF($D29="%",I$25*I35,H29*(1+I$47)) -> 10080 | J29: 10584 | K29: 11113.2 | L29: 11668.86 | M29: 12252.303 | N29: 12864.91815 | P29: =P$25*P35 -> 10080 | Q29: 10584 | R29: 11113.2 | S29: 11668.86 | T29: 12252.303 | U29: 12864.91815 | W29: =W$25*W35 -> 10560 | X29: 11616 | Y29: 12777.6 | Z29: 14055.36 | AA29: 15460.896 | AB29: 17006.9856 | AD29: =AD$25*AD35 -> 11520 | AE29: 13824 | AF29: 16588.8 | AG29: 19906.56 | AH29: 23887.872 | AI29: 28665.4464
B30: Inventory | D30: % | F30: 11500 | G30: 11500 | H30: =IF($D30="%",H$25*H36,G30) -> 11500 | I30: 12075 | J30: 12678.75 | K30: 13312.6875 | L30: 13978.32188 | M30: 14677.23797 | N30: 15411.09987 | P30: 12075 | Q30: 12678.75 | R30: 13312.6875 | S30: 13978.32188 | T30: 14677.23797 | U30: 15411.09987 | W30: 12650 | X30: 13915 | Y30: 15306.5 | Z30: 16837.15 | AA30: 18520.865 | AB30: 20372.9515 | AD30: 13800 | AE30: 16560 | AF30: 19872 | AG30: 23846.4 | AH30: 28615.68 | AI30: 34338.816
B31: Rent | D31: % | F31: 4515 | G31: 4515 | H31: =IF($D31="%",H$25*H37,G31) -> 4515 | I31: 4740.75 | J31: 4977.7875 | K31: 5226.676875 | L31: 5488.010719 | M31: 5762.411255 | N31: 6050.531817 | P31: 4740.75 | Q31: 4977.7875 | R31: 5226.676875 | S31: 5488.010719 | T31: 5762.411255 | U31: 6050.531817 | W31: 4966.5 | X31: 5463.15 | Y31: 6009.465 | Z31: 6610.4115 | AA31: 7271.45265 | AB31: 7998.597915 | AD31: 5418 | AE31: 6501.6 | AF31: 7801.92 | AG31: 9362.304 | AH31: 11234.7648 | AI31: 13481.71776
B32: Utilities | D32: % | F32: 2610 | G32: 2610 | H32: =IF($D32="%",H$25*H38,G32) -> 2610 | I32: 2740.5 | J32: 2877.525 | K32: 3021.40125 | L32: 3172.471313 | M32: 3331.094878 | N32: 3497.649622 | P32: 2740.5 | Q32: 2877.525 | R32: 3021.40125 | S32: 3172.471313 | T32: 3331.094878 | U32: 3497.649622 | W32: 2871 | X32: 3158.1 | Y32: 3473.91 | Z32: 3821.301 | AA32: 4203.4311 | AB32: 4623.77421 | AD32: 3132 | AE32: 3758.4 | AF32: 4510.08 | AG32: 5412.096 | AH32: 6494.5152 | AI32: 7793.41824
B33: Other | D33: % | F33: 1158 | G33: 1158 | H33: =IF($D33="%",H$25*H39,G33) -> 1158 | I33: 1215.9 | J33: 1276.695 | K33: 1340.52975 | L33: 1407.556237 | M33: 1477.934049 | N33: 1551.830752 | P33: 1215.9 | Q33: 1276.695 | R33: 1340.52975 | S33: 1407.556237 | T33: 1477.934049 | U33: 1551.830752 | W33: 1273.8 | X33: 1401.18 | Y33: 1541.298 | Z33: 1695.4278 | AA33: 1864.97058 | AB33: 2051.467638 | AD33: 1389.6 | AE33: 1667.52 | AF33: 2001.024 | AG33: 2401.2288 | AH33: 2881.47456 | AI33: 3457.769472
B35: =B29 -> Base Salaries | D35: =D29 -> % | F35: =IF(ISNUMBER(F29/F$25),F29/F$25,0) -> 0.192 | G35: 0.192 | H35: =AVERAGE(F35:G35) -> 0.192 | I35: =CHOOSE($D$4,P35,W35,AD35) -> 0.192 | J35: =CHOOSE($D$4,Q35,X35,AE35) -> 0.192 | K35: =CHOOSE($D$4,R35,Y35,AF35) -> 0.192 | L35: =CHOOSE($D$4,S35,Z35,AG35) -> 0.192 | M35: =CHOOSE($D$4,T35,AA35,AH35) -> 0.192 | N35: =CHOOSE($D$4,U35,AB35,AI35) -> 0.192 | P35: =AVERAGE($F35:$G35) -> 0.192 | Q35: =AVERAGE($F35:$G35) -> 0.192 | R35: 0.192 | S35: 0.192 | T35: 0.192 | U35: 0.192 | W35: =AVERAGE($F35:$G35) -> 0.192 | X35: =AVERAGE($F35:$G35) -> 0.192 | Y35: 0.192 | Z35: 0.192 | AA35: 0.192 | AB35: 0.192 | AD35: =AVERAGE($F35:$G35) -> 0.192 | AE35: =AVERAGE($F35:$G35) -> 0.192 | AF35: 0.192 | AG35: 0.192 | AH35: 0.192 | AI35: 0.192
B36: =B30 -> Inventory | D36: =D30 -> % | F36: 0.23 | G36: 0.23 | H36: 0.23 | I36: =CHOOSE($D$4,P36,W36,AD36) -> 0.23 | J36: 0.23 | K36: 0.23 | L36: 0.23 | M36: 0.23 | N36: 0.23 | P36: =AVERAGE($F36:$G36) -> 0.23 | Q36: 0.23 | R36: 0.23 | S36: 0.23 | T36: 0.23 | U36: 0.23 | W36: =AVERAGE($F36:$G36) -> 0.23 | X36: 0.23 | Y36: 0.23 | Z36: 0.23 | AA36: 0.23 | AB36: 0.23 | AD36: 0.23 | AE36: 0.23 | AF36: 0.23 | AG36: 0.23 | AH36: 0.23 | AI36: 0.23
B37: =B31 -> Rent | D37: =D31 -> % | F37: 0.0903 | G37: 0.0903 | H37: 0.0903 | I37: =CHOOSE($D$4,P37,W37,AD37) -> 0.0903 | J37: =CHOOSE($D$4,Q37,X37,AE37) -> 0.0903 | K37: =CHOOSE($D$4,R37,Y37,AF37) -> 0.0903 | L37: =CHOOSE($D$4,S37,Z37,AG37) -> 0.0903 | M37: =CHOOSE($D$4,T37,AA37,AH37) -> 0.0903 | N37: =CHOOSE($D$4,U37,AB37,AI37) -> 0.0903 | P37: 0.0903 | Q37: 0.0903 | R37: 0.0903 | S37: 0.0903 | T37: 0.0903 | U37: 0.0903 | W37: 0.0903 | X37: 0.0903 | Y37: 0.0903 | Z37: =AVERAGE($F37:$G37) -> 0.0903 | AA37: 0.0903 | AB37: 0.0903 | AD37: 0.0903 | AE37: 0.0903 | AF37: 0.0903 | AG37: 0.0903 | AH37: 0.0903 | AI37: 0.0903
B38: =B32 -> Utilities | D38: =D32 -> % | F38: 0.0522 | G38: 0.0522 | H38: 0.0522 | I38: 0.0522 | J38: 0.0522 | K38: 0.0522 | L38: 0.0522 | M38: 0.0522 | N38: 0.0522 | P38: 0.0522 | Q38: 0.0522 | R38: 0.0522 | S38: 0.0522 | T38: 0.0522 | U38: 0.0522 | W38: 0.0522 | X38: 0.0522 | Y38: 0.0522 | Z38: 0.0522 | AA38: 0.0522 | AB38: 0.0522 | AD38: 0.0522 | AE38: 0.0522 | AF38: 0.0522 | AG38: 0.0522 | AH38: 0.0522 | AI38: 0.0522
B39: =B33 -> Other | D39: =D33 -> % | F39: 0.02316 | G39: 0.02316 | H39: 0.02316 | I39: 0.02316 | J39: 0.02316 | K39: 0.02316 | L39: 0.02316 | M39: 0.02316 | N39: 0.02316 | P39: =AVERAGE($F39:$G39) -> 0.02316 | Q39: 0.02316 | R39: 0.02316 | S39: 0.02316 | T39: 0.02316 | U39: 0.02316 | W39: =AVERAGE($F39:$G39) -> 0.02316 | X39: 0.02316 | Y39: 0.02316 | Z39: 0.02316 | AA39: 0.02316 | AB39: 0.02316 | AD39: 0.02316 | AE39: 0.02316 | AF39: 0.02316 | AG39: 0.02316 | AH39: 0.02316 | AI39: 0.02316
B41: COGS (Net of D & A) | F41: =SUM(F29:F33) -> 29383 | G41: 29383 | H41: 29383 | I41: 30852.15 | J41: 32394.7575 | K41: 34014.49537 | L41: 35715.22014 | M41: 37500.98115 | N41: 39376.03021 | P41: =SUM(P29:P33) -> 30852.15 | Q41: 32394.7575 | R41: 34014.49537 | S41: 35715.22014 | T41: 37500.98115 | U41: 39376.03021 | W41: =SUM(W29:W33) -> 32321.3 | X41: 35553.43 | Y41: 39108.773 | Z41: 43019.6503 | AA41: 47321.61533 | AB41: 52053.77686 | AD41: =SUM(AD29:AD33) -> 35259.6 | AE41: 42311.52 | AF41: 50773.824 | AG41: 60928.5888 | AH41: 73114.30656 | AI41: 87737.16787
B42: % of Sales | F42: =F41/F25 -> 0.58766 | G42: 0.58766 | H42: 0.58766 | I42: 0.58766 | J42: 0.58766 | K42: 0.58766 | L42: 0.58766 | M42: 0.58766 | N42: 0.58766 | P42: =P41/P25 -> 0.58766 | Q42: 0.58766 | R42: 0.58766 | S42: 0.58766 | T42: 0.58766 | U42: 0.58766 | W42: =W41/W25 -> 0.58766 | X42: 0.58766 | Y42: 0.58766 | Z42: 0.58766 | AA42: 0.58766 | AB42: 0.58766 | AD42: =AD41/AD25 -> 0.58766 | AE42: 0.58766 | AF42: 0.58766 | AG42: 0.58766 | AH42: 0.58766 | AI42: 0.58766
B44: Gross Profit | F44: =F25-F41 -> 20617 | G44: 20617 | H44: 20617 | I44: 21647.85 | J44: 22730.2425 | K44: 23866.75463 | L44: 25060.09236 | M44: 26313.09697 | N44: 27628.75182 | P44: =P25-P41 -> 21647.85 | Q44: 22730.2425 | R44: 23866.75463 | S44: 25060.09236 | T44: 26313.09697 | U44: 27628.75182 | W44: =W25-W41 -> 22678.7 | X44: 24946.57 | Y44: 27441.227 | Z44: 30185.3497 | AA44: 33203.88467 | AB44: 36524.27314 | AD44: =AD25-AD41 -> 24740.4 | AE44: 29688.48 | AF44: 35626.176 | AG44: 42751.4112 | AH44: 51301.69344 | AI44: 61562.03213
B45: % of Sales | F45: =F44/F25 -> 0.41234 | G45: 0.41234 | H45: 0.41234 | I45: 0.41234 | J45: 0.41234 | K45: 0.41234 | L45: 0.41234 | M45: 0.41234 | N45: 0.41234 | P45: =P44/P25 -> 0.41234 | Q45: 0.41234 | R45: 0.41234 | S45: 0.41234 | T45: 0.41234 | U45: 0.41234 | W45: =W44/W25 -> 0.41234 | X45: 0.41234 | Y45: 0.41234 | Z45: 0.41234 | AA45: 0.41234 | AB45: 0.41234 | AD45: =AD44/AD25 -> 0.41234 | AE45: 0.41234 | AF45: 0.41234 | AG45: 0.41234 | AH45: 0.41234 | AI45: 0.41234
B47: COGS Assumption: Straight Line Growth Rate | F47: NM | G47: NM | H47: NM | I47: 0.025 | J47: 0.025 | K47: 0.025 | L47: 0.025 | M47: 0.025 | N47: 0.025
B49: SG&A (Net of D&A) | D49: SL / %
B50: Base Salaries | D50: % | F50: 4500 | G50: 4500 | H50: =IF($D50="%",H$25*H61,G50) -> 4500 | I50: =IF($D50="%",I$25*I61,H50*(1+I$75)) -> 4725 | J50: 4961.25 | K50: 5209.3125 | L50: 5469.778125 | M50: 5743.267031 | N50: 6030.430383 | P50: =P$25*P61 -> 4725 | Q50: 4961.25 | R50: 5209.3125 | S50: 5469.778125 | T50: 5743.267031 | U50: 6030.430383 | W50: =W$25*W61 -> 4950 | X50: 5445 | Y50: 5989.5 | Z50: 6588.45 | AA50: 7247.295 | AB50: 7972.0245 | AD50: =AD$25*AD61 -> 5400 | AE50: 6480 | AF50: 7776 | AG50: 9331.2 | AH50: 11197.44 | AI50: 13436.928
B51: Utilities | D51: % | F51: 1280 | G51: 1280 | H51: 1280 | I51: 1344 | J51: 1411.2 | K51: 1481.76 | L51: 1555.848 | M51: 1633.6404 | N51: 1715.32242 | P51: 1344 | Q51: 1411.2 | R51: 1481.76 | S51: 1555.848 | T51: 1633.6404 | U51: 1715.32242 | W51: 1408 | X51: 1548.8 | Y51: 1703.68 | Z51: 1874.048 | AA51: 2061.4528 | AB51: 2267.59808 | AD51: 1536 | AE51: 1843.2 | AF51: 2211.84 | AG51: 2654.208 | AH51: 3185.0496 | AI51: 3822.05952
B52: Fees for Professional Services | D52: % | F52: 1024 | G52: 1024 | H52: 1024 | I52: 1075.2 | J52: 1128.96 | K52: 1185.408 | L52: 1244.6784 | M52: 1306.91232 | N52: 1372.257936 | P52: 1075.2 | Q52: 1128.96 | R52: 1185.408 | S52: 1244.6784 | T52: 1306.91232 | U52: 1372.257936 | W52: 1126.4 | X52: 1239.04 | Y52: 1362.944 | Z52: 1499.2384 | AA52: 1649.16224 | AB52: 1814.078464 | AD52: 1228.8 | AE52: 1474.56 | AF52: 1769.472 | AG52: 2123.3664 | AH52: 2548.03968 | AI52: 3057.647616
B53: Insurance | D53: % | F53: 655.36 | G53: 655.36 | H53: 655.36 | I53: 688.128 | J53: 722.5344 | K53: 758.66112 | L53: 796.594176 | M53: 836.4238848 | N53: 878.245079 | P53: 688.128 | Q53: 722.5344 | R53: 758.66112 | S53: 796.594176 | T53: 836.4238848 | U53: 878.245079 | W53: 720.896 | X53: 792.9856 | Y53: 872.28416 | Z53: 959.512576 | AA53: 1055.463834 | AB53: 1161.010217 | AD53: 786.432 | AE53: 943.7184 | AF53: 1132.46208 | AG53: 1358.954496 | AH53: 1630.745395 | AI53: 1956.894474
B54: Telecommunications | D54: % | F54: 336 | G54: 336 | H54: 336 | I54: 352.8 | J54: 370.44 | K54: 388.962 | L54: 408.4101 | M54: 428.830605 | N54: 450.2721353 | P54: 352.8 | Q54: 370.44 | R54: 388.962 | S54: 408.4101 | T54: 428.830605 | U54: 450.2721353 | W54: 369.6 | X54: 406.56 | Y54: 447.216 | Z54: 491.9376 | AA54: 541.13136 | AB54: 595.244496 | AD54: 403.2 | AE54: 483.84 | AF54: 580.608 | AG54: 696.7296 | AH54: 836.07552 | AI54: 1003.290624
B55: Rent | D55: % | F55: 270 | G55: 270 | H55: 270 | I55: 283.5 | J55: 297.675 | K55: 312.55875 | L55: 328.1866875 | M55: 344.5960219 | N55: 361.825823 | P55: 283.5 | Q55: 297.675 | R55: 312.55875 | S55: 328.1866875 | T55: 344.5960219 | U55: 361.825823 | W55: 297 | X55: 326.7 | Y55: 359.37 | Z55: 395.307 | AA55: 434.8377 | AB55: 478.32147 | AD55: 324 | AE55: 388.8 | AF55: 466.56 | AG55: 559.872 | AH55: 671.8464 | AI55: 806.21568
B56: Freight and Haulage | D56: % | F56: 200 | G56: 200 | H56: 200 | I56: 210 | J56: 220.5 | K56: 231.525 | L56: 243.10125 | M56: 255.2563125 | N56: 268.0191281 | P56: 210 | Q56: 220.5 | R56: 231.525 | S56: 243.10125 | T56: 255.2563125 | U56: 268.0191281 | W56: 220 | X56: 242 | Y56: 266.2 | Z56: 292.82 | AA56: 322.102 | AB56: 354.3122 | AD56: 240 | AE56: 288 | AF56: 345.6 | AG56: 414.72 | AH56: 497.664 | AI56: 597.1968
B57: Indirect Materials | D57: % | F57: 175 | G57: 175 | H57: 175 | I57: 183.75 | J57: 192.9375 | K57: 202.584375 | L57: 212.7135938 | M57: 223.3492734 | N57: 234.5167371 | P57: 183.75 | Q57: 192.9375 | R57: 202.584375 | S57: 212.7135938 | T57: 223.3492734 | U57: 234.5167371 | W57: 192.5 | X57: 211.75 | Y57: 232.925 | Z57: 256.2175 | AA57: 281.83925 | AB57: 310.023175 | AD57: 210 | AE57: 252 | AF57: 302.4 | AG57: 362.88 | AH57: 435.456 | AI57: 522.5472
B58: Bathroom Supplies | D58: % | F58: 110 | G58: 110 | H58: 110 | I58: 115.5 | J58: 121.275 | K58: 127.33875 | L58: 133.7056875 | M58: 140.3909719 | N58: 147.4105205 | P58: 115.5 | Q58: 121.275 | R58: 127.33875 | S58: 133.7056875 | T58: 140.3909719 | U58: 147.4105205 | W58: 121 | X58: 133.1 | Y58: 146.41 | Z58: 161.051 | AA58: 177.1561 | AB58: 194.87171 | AD58: 132 | AE58: 158.4 | AF58: 190.08 | AG58: 228.096 | AH58: 273.7152 | AI58: 328.45824
B59: Other | D59: % | F59: 45 | G59: 45 | H59: 45 | I59: 47.25 | J59: 49.6125 | K59: 52.093125 | L59: 54.69778125 | M59: 57.43267031 | N59: 60.30430383 | P59: 47.25 | Q59: 49.6125 | R59: 52.093125 | S59: 54.69778125 | T59: 57.43267031 | U59: 60.30430383 | W59: 49.5 | X59: 54.45 | Y59: 59.895 | Z59: 65.8845 | AA59: 72.47295 | AB59: 79.720245 | AD59: 54 | AE59: 64.8 | AF59: 77.76 | AG59: 93.312 | AH59: 111.9744 | AI59: 134.36928
B61: =B50 -> Base Salaries | D61: =D50 -> % | F61: =IF(ISNUMBER(F50/F$25),F50/F$25,0) -> 0.09 | G61: 0.09 | H61: =AVERAGE(F61:G61) -> 0.09 | I61: =CHOOSE($D$4,P61,W61,AD61) -> 0.09 | J61: =CHOOSE($D$4,Q61,X61,AE61) -> 0.09 | K61: =CHOOSE($D$4,R61,Y61,AF61) -> 0.09 | L61: =CHOOSE($D$4,S61,Z61,AG61) -> 0.09 | M61: =CHOOSE($D$4,T61,AA61,AH61) -> 0.09 | N61: =CHOOSE($D$4,U61,AB61,AI61) -> 0.09 | P61: =AVERAGE($F61:$G61) -> 0.09 | Q61: =AVERAGE($F61:$G61) -> 0.09 | R61: 0.09 | S61: 0.09 | T61: 0.09 | U61: 0.09 | W61: =AVERAGE($F61:$G61) -> 0.09 | X61: =AVERAGE($F61:$G61) -> 0.09 | Y61: 0.09 | Z61: 0.09 | AA61: 0.09 | AB61: 0.09 | AD61: =AVERAGE($F61:$G61) -> 0.09 | AE61: =AVERAGE($F61:$G61) -> 0.09 | AF61: 0.09 | AG61: 0.09 | AH61: 0.09 | AI61: 0.09
B62: Utilities | D62: % | F62: 0.0256 | G62: 0.0256 | H62: =AVERAGE(F62:G62) -> 0.0256 | I62: 0.0256 | J62: 0.0256 | K62: 0.0256 | L62: 0.0256 | M62: 0.0256 | N62: 0.0256 | P62: =AVERAGE($F62:$G62) -> 0.0256 | Q62: 0.0256 | R62: 0.0256 | S62: 0.0256 | T62: 0.0256 | U62: 0.0256 | W62: =AVERAGE($F62:$G62) -> 0.0256 | X62: 0.0256 | Y62: 0.0256 | Z62: 0.0256 | AA62: 0.0256 | AB62: 0.0256 | AD62: =AVERAGE($F62:$G62) -> 0.0256 | AE62: 0.0256 | AF62: 0.0256 | AG62: 0.0256 | AH62: 0.0256 | AI62: 0.0256
B63: Fees for Professional Services | D63: % | F63: 0.02048 | G63: 0.02048 | H63: 0.02048 | I63: 0.02048 | J63: 0.02048 | K63: 0.02048 | L63: 0.02048 | M63: 0.02048 | N63: 0.02048 | P63: 0.02048 | Q63: 0.02048 | R63: 0.02048 | S63: 0.02048 | T63: 0.02048 | U63: 0.02048 | W63: 0.02048 | X63: 0.02048 | Y63: 0.02048 | Z63: 0.02048 | AA63: 0.02048 | AB63: 0.02048 | AD63: 0.02048 | AE63: 0.02048 | AF63: 0.02048 | AG63: 0.02048 | AH63: 0.02048 | AI63: 0.02048
B64: Insurance | D64: % | F64: 0.0131072 | G64: 0.0131072 | H64: 0.0131072 | I64: =CHOOSE($D$4,P64,W64,AD64) -> 0.0131072 | J64: =CHOOSE($D$4,Q64,X64,AE64) -> 0.0131072 | K64: =CHOOSE($D$4,R64,Y64,AF64) -> 0.0131072 | L64: =CHOOSE($D$4,S64,Z64,AG64) -> 0.0131072 | M64: =CHOOSE($D$4,T64,AA64,AH64) -> 0.0131072 | N64: =CHOOSE($D$4,U64,AB64,AI64) -> 0.0131072 | P64: 0.0131072 | Q64: 0.0131072 | R64: 0.0131072 | S64: 0.0131072 | T64: 0.0131072 | U64: 0.0131072 | W64: 0.0131072 | X64: 0.0131072 | Y64: 0.0131072 | Z64: 0.0131072 | AA64: 0.0131072 | AB64: 0.0131072 | AD64: 0.0131072 | AE64: 0.0131072 | AF64: 0.0131072 | AG64: 0.0131072 | AH64: 0.0131072 | AI64: 0.0131072
B65: Telecommunications | D65: % | F65: 0.00672 | G65: 0.00672 | H65: 0.00672 | I65: 0.00672 | J65: 0.00672 | K65: 0.00672 | L65: 0.00672 | M65: 0.00672 | N65: 0.00672 | P65: 0.00672 | Q65: 0.00672 | R65: 0.00672 | S65: 0.00672 | T65: 0.00672 | U65: 0.00672 | W65: 0.00672 | X65: 0.00672 | Y65: 0.00672 | Z65: 0.00672 | AA65: 0.00672 | AB65: 0.00672 | AD65: 0.00672 | AE65: 0.00672 | AF65: 0.00672 | AG65: 0.00672 | AH65: 0.00672 | AI65: 0.00672
B66: Rent | D66: % | F66: 0.0054 | G66: 0.0054 | H66: 0.0054 | I66: 0.0054 | J66: 0.0054 | K66: 0.0054 | L66: 0.0054 | M66: 0.0054 | N66: 0.0054 | P66: 0.0054 | Q66: 0.0054 | R66: 0.0054 | S66: 0.0054 | T66: 0.0054 | U66: 0.0054 | W66: 0.0054 | X66: 0.0054 | Y66: 0.0054 | Z66: 0.0054 | AA66: 0.0054 | AB66: 0.0054 | AD66: 0.0054 | AE66: 0.0054 | AF66: 0.0054 | AG66: 0.0054 | AH66: 0.0054 | AI66: 0.0054
B67: Freight and Haulage | D67: % | F67: 0.004 | G67: 0.004 | H67: 0.004 | I67: 0.004 | J67: 0.004 | K67: 0.004 | L67: 0.004 | M67: 0.004 | N67: 0.004 | P67: 0.004 | Q67: 0.004 | R67: 0.004 | S67: 0.004 | T67: 0.004 | U67: 0.004 | W67: 0.004 | X67: 0.004 | Y67: 0.004 | Z67: 0.004 | AA67: 0.004 | AB67: 0.004 | AD67: 0.004 | AE67: 0.004 | AF67: 0.004 | AG67: 0.004 | AH67: 0.004 | AI67: 0.004
B68: Indirect Materials | D68: % | F68: 0.0035 | G68: 0.0035 | H68: 0.0035 | I68: 0.0035 | J68: 0.0035 | K68: 0.0035 | L68: 0.0035 | M68: 0.0035 | N68: 0.0035 | P68: 0.0035 | Q68: 0.0035 | R68: 0.0035 | S68: 0.0035 | T68: 0.0035 | U68: 0.0035 | W68: 0.0035 | X68: 0.0035 | Y68: 0.0035 | Z68: 0.0035 | AA68: 0.0035 | AB68: 0.0035 | AD68: 0.0035 | AE68: 0.0035 | AF68: 0.0035 | AG68: 0.0035 | AH68: 0.0035 | AI68: 0.0035
B69: Bathroom Supplies | D69: % | F69: 0.0022 | G69: 0.0022 | H69: 0.0022 | I69: 0.0022 | J69: 0.0022 | K69: 0.0022 | L69: 0.0022 | M69: 0.0022 | N69: 0.0022 | P69: 0.0022 | Q69: 0.0022 | R69: 0.0022 | S69: 0.0022 | T69: 0.0022 | U69: 0.0022 | W69: 0.0022 | X69: 0.0022 | Y69: 0.0022 | Z69: 0.0022 | AA69: 0.0022 | AB69: 0.0022 | AD69: 0.0022 | AE69: 0.0022 | AF69: 0.0022 | AG69: 0.0022 | AH69: 0.0022 | AI69: 0.0022
B70: Other | D70: % | F70: 0.0009 | G70: 0.0009 | H70: 0.0009 | I70: 0.0009 | J70: 0.0009 | K70: 0.0009 | L70: 0.0009 | M70: 0.0009 | N70: 0.0009 | P70: =AVERAGE($F70:$G70) -> 0.0009 | Q70: 0.0009 | R70: 0.0009 | S70: 0.0009 | T70: 0.0009 | U70: 0.0009 | W70: =AVERAGE($F70:$G70) -> 0.0009 | X70: 0.0009 | Y70: 0.0009 | Z70: 0.0009 | AA70: 0.0009 | AB70: 0.0009 | AD70: =AVERAGE($F70:$G70) -> 0.0009 | AE70: 0.0009 | AF70: 0.0009 | AG70: 0.0009 | AH70: 0.0009 | AI70: 0.0009
B72: SG&A (Net of D & A) | F72: =SUM(F50:F59) -> 8595.36 | G72: 8595.36 | H72: 8595.36 | I72: 9025.128 | J72: 9476.3844 | K72: 9950.20362 | L72: 10447.7138 | M72: 10970.09949 | N72: 11518.60447 | P72: =SUM(P50:P59) -> 9025.128 | Q72: 9476.3844 | R72: 9950.20362 | S72: 10447.7138 | T72: 10970.09949 | U72: 11518.60447 | W72: =SUM(W50:W59) -> 9454.896 | X72: 10400.3856 | Y72: 11440.42416 | Z72: 12584.46658 | AA72: 13842.91323 | AB72: 15227.20456 | AD72: =SUM(AD50:AD59) -> 10314.432 | AE72: 12377.3184 | AF72: 14852.78208 | AG72: 17823.3385 | AH72: 21388.0062 | AI72: 25665.60743
B73: % of Sales | F73: =F72/F25 -> 0.1719072 | G73: 0.1719072 | H73: 0.1719072 | I73: 0.1719072 | J73: 0.1719072 | K73: 0.1719072 | L73: 0.1719072 | M73: 0.1719072 | N73: 0.1719072 | P73: =P72/P25 -> 0.1719072 | Q73: 0.1719072 | R73: 0.1719072 | S73: 0.1719072 | T73: 0.1719072 | U73: 0.1719072 | W73: =W72/W25 -> 0.1719072 | X73: 0.1719072 | Y73: 0.1719072 | Z73: 0.1719072 | AA73: 0.1719072 | AB73: 0.1719072 | AD73: =AD72/AD25 -> 0.1719072 | AE73: 0.1719072 | AF73: 0.1719072 | AG73: 0.1719072 | AH73: 0.1719072 | AI73: 0.1719072
B75: SG&A Assumption: Straight Line Growth Rate | F75: NM | G75: NM | H75: NM | I75: 0.025 | J75: 0.025 | K75: 0.025 | L75: 0.025 | M75: 0.025 | N75: 0.025
B77: EBITDA | F77: =F44-F72 -> 12021.64 | G77: 12021.64 | H77: 12021.64 | I77: 12622.722 | J77: 13253.8581 | K77: 13916.55101 | L77: 14612.37856 | M77: 15342.99748 | N77: 16110.14736 | P77: =P44-P72 -> 12622.722 | Q77: 13253.8581 | R77: 13916.55101 | S77: 14612.37856 | T77: 15342.99748 | U77: 16110.14736 | W77: =W44-W72 -> 13223.804 | X77: 14546.1844 | Y77: 16000.80284 | Z77: 17600.88312 | AA77: 19360.97144 | AB77: 21297.06858 | AD77: =AD44-AD72 -> 14425.968 | AE77: 17311.1616 | AF77: 20773.39392 | AG77: 24928.0727 | AH77: 29913.68724 | AI77: 35896.42469
B78: % of Sales | F78: =F77/F25 -> 0.2404328 | G78: 0.2404328 | H78: 0.2404328 | I78: 0.2404328 | J78: 0.2404328 | K78: 0.2404328 | L78: 0.2404328 | M78: 0.2404328 | N78: 0.2404328 | P78: =P77/P25 -> 0.2404328 | Q78: 0.2404328 | R78: 0.2404328 | S78: 0.2404328 | T78: 0.2404328 | U78: 0.2404328 | W78: =W77/W25 -> 0.2404328 | X78: 0.2404328 | Y78: 0.2404328 | Z78: 0.2404328 | AA78: 0.2404328 | AB78: 0.2404328 | AD78: =AD77/AD25 -> 0.2404328 | AE78: 0.2404328 | AF78: 0.2404328 | AG78: 0.2404328 | AH78: 0.2404328 | AI78: 0.2404328
B80: Adjustments to EBITDA
B81: Fees for Professional Services | F81: 0 | G81: 0 | H81: 0 | I81: =CHOOSE($D$4,P81,W81,AD81) -> 0 | J81: 0 | K81: 0 | L81: 0 | M81: 0 | N81: 0 | P81: 0 | Q81: 0 | R81: 0 | S81: 0 | T81: 0 | U81: 0 | W81: 0 | X81: 0 | Y81: 0 | Z81: 0 | AA81: 0 | AB81: 0 | AD81: 0 | AE81: 0 | AF81: 0 | AG81: 0 | AH81: 0 | AI81: 0
B82: Mgmt Adjustments | F82: 0 | G82: 0 | H82: 0 | I82: 0 | J82: 0 | K82: 0 | L82: 0 | M82: 0 | N82: 0 | P82: 0 | Q82: 0 | R82: 0 | S82: 0 | T82: 0 | U82: 0 | W82: 0 | X82: 0 | Y82: 0 | Z82: 0 | AA82: 0 | AB82: 0 | AD82: 0 | AE82: 0 | AF82: 0 | AG82: 0 | AH82: 0 | AI82: 0
B83: Misc. | F83: 0 | G83: 0 | H83: 0 | I83: 0 | J83: 0 | K83: 0 | L83: 0 | M83: 0 | N83: 0 | P83: 0 | Q83: 0 | R83: 0 | S83: 0 | T83: 0 | U83: 0 | W83: 0 | X83: 0 | Y83: 0 | Z83: 0 | AA83: 0 | AB83: 0 | AD83: 0 | AE83: 0 | AF83: 0 | AG83: 0 | AH83: 0 | AI83: 0
B85: EBITDA | F85: =F77+SUM(F81:F83) -> 12021.64 | G85: 12021.64 | H85: 12021.64 | I85: 12622.722 | J85: 13253.8581 | K85: 13916.55101 | L85: 14612.37856 | M85: 15342.99748 | N85: 16110.14736 | P85: 12622.722 | Q85: 13253.8581 | R85: 13916.55101 | S85: 14612.37856 | T85: 15342.99748 | U85: 16110.14736 | W85: 13223.804 | X85: 14546.1844 | Y85: 16000.80284 | Z85: 17600.88312 | AA85: 19360.97144 | AB85: 21297.06858 | AD85: 14425.968 | AE85: 17311.1616 | AF85: 20773.39392 | AG85: 24928.0727 | AH85: 29913.68724 | AI85: 35896.42469
B86: % of Sales | F86: =F85/F25 -> 0.2404328 | G86: 0.2404328 | H86: 0.2404328 | I86: 0.2404328 | J86: 0.2404328 | K86: 0.2404328 | L86: 0.2404328 | M86: 0.2404328 | N86: 0.2404328 | P86: =P85/P25 -> 0.2404328 | Q86: 0.2404328 | R86: 0.2404328 | S86: 0.2404328 | T86: 0.2404328 | U86: 0.2404328 | W86: =W85/W25 -> 0.2404328 | X86: 0.2404328 | Y86: 0.2404328 | Z86: 0.2404328 | AA86: 0.2404328 | AB86: 0.2404328 | AD86: =AD85/AD25 -> 0.2404328 | AE86: 0.2404328 | AF86: 0.2404328 | AG86: 0.2404328 | AH86: 0.2404328 | AI86: 0.2404328

Sheet Debt Schedule
B1: ='Sources & Uses'!B1 -> COMPANY
B2: DEBT SCHEDULE
B4: ='Exit Analysis'!K1 -> 1
E5: Projections
D6: Transaction | E6: ='Post-Transaction Fncl Sts'!G6 -> 1 | F6: ='Post-Transaction Fncl Sts'!H6 -> 2 | G6: ='Post-Transaction Fncl Sts'!I6 -> 3 | H6: ='Post-Transaction Fncl Sts'!J6 -> 4 | I6: ='Post-Transaction Fncl Sts'!K6 -> 5 | J6: ='Post-Transaction Fncl Sts'!L6 -> 6
D7: ='Post-Transaction Fncl Sts'!F7 -> 2017 | E7: ='Post-Transaction Fncl Sts'!G7 -> 2018 | F7: ='Post-Transaction Fncl Sts'!H7 -> 2019 | G7: ='Post-Transaction Fncl Sts'!I7 -> 2020 | H7: ='Post-Transaction Fncl Sts'!J7 -> 2021 | I7: ='Post-Transaction Fncl Sts'!K7 -> 2022 | J7: ='Post-Transaction Fncl Sts'!L7 -> 2023
D8: ='Post-Transaction Fncl Sts'!F8 -> 2017-12-31 | E8: ='Post-Transaction Fncl Sts'!G8 -> 2018-12-31 | F8: ='Post-Transaction Fncl Sts'!H8 -> 2019-12-31 | G8: ='Post-Transaction Fncl Sts'!I8 -> 2020-12-31 | H8: ='Post-Transaction Fncl Sts'!J8 -> 2021-12-31 | I8: ='Post-Transaction Fncl Sts'!K8 -> 2022-12-31 | J8: ='Post-Transaction Fncl Sts'!L8 -> 2023-12-31
D9: ='Post-Transaction Fncl Sts'!F9 -> 12 | E9: ='Post-Transaction Fncl Sts'!G9 -> 12 | F9: ='Post-Transaction Fncl Sts'!H9 -> 12 | G9: ='Post-Transaction Fncl Sts'!I9 -> 12 | H9: ='Post-Transaction Fncl Sts'!J9 -> 12 | I9: ='Post-Transaction Fncl Sts'!K9 -> 12 | J9: ='Post-Transaction Fncl Sts'!L9 -> 12
B12: REVOLVING LINE OF CREDIT | L12: Comments
B13: Cash at Beginning of Year | E13: ='Post-Transaction Fncl Sts'!F75 -> 0 | F13: ='Post-Transaction Fncl Sts'!G75 -> 1186.4283 | G13: ='Post-Transaction Fncl Sts'!H75 -> 2983.00614 | H13: ='Post-Transaction Fncl Sts'!I75 -> 4666.359747 | I13: ='Post-Transaction Fncl Sts'!J75 -> 7019.437284 | J13: ='Post-Transaction Fncl Sts'!K75 -> 9826.537449
B14: Plus: Additions | E14: 0 | F14: 0 | G14: 0 | H14: 0 | I14: 0 | J14: 0
B15: FCF Prior To Revolver | E15: ='Post-Transaction Fncl Sts'!G185 -> 1186.4283 | F15: ='Post-Transaction Fncl Sts'!H185 -> 1796.57784 | G15: ='Post-Transaction Fncl Sts'!I185 -> 1683.353607 | H15: ='Post-Transaction Fncl Sts'!J185 -> 2353.077537 | I15: ='Post-Transaction Fncl Sts'!K185 -> 2807.100164 | J15: ='Post-Transaction Fncl Sts'!L185 -> 7901.386422
B16: Less: Minimum Cash Balance | E16: 0 | F16: 0 | G16: 0 | H16: 0 | I16: 0 | J16: 0
B17: Cash Available / Cash Required | E17: =E13+E14+E15-E16 -> 1186.4283 | F17: 2983.00614 | G17: 4666.359747 | H17: 7019.437284 | I17: 9826.537449 | J17: 17727.92387
B18: Revolver Balance | D18: ='Post-Transaction Fncl Sts'!F118 -> 0 | E18: =MAX(D18-E17,0) -> 0 | F18: 0 | G18: 0 | H18: 0 | I18: 0 | J18: 0
B19: Interest Paid | C19: 0.08 | E19: =AVERAGE(D18,E18)*$C$19*(E$9/12) -> 0 | F19: =AVERAGE(E18,F18)*$C$19*(F$9/12) -> 0 | G19: 0 | H19: 0 | I19: 0 | J19: 0
B20: SENIOR DEBT
B21: Beginning Balance | E21: =D24 -> 30000 | F21: 26250 | G21: 22500 | H21: 18000 | I21: 13500 | J21: 9000
B22: Plus: Additions | E22: 0 | F22: 0 | G22: 0 | H22: 0 | I22: 0 | J22: 0
B23: Less: Scheduled Amortization (% Amortization) | E23: =IF(D24>=$D$24*E26,$D$24*E26,0) -> 3750 | F23: =IF(E24>=$D$24*F26,$D$24*F26,0) -> 3750 | G23: 4500 | H23: 4500 | I23: 4500 | J23: 0
B24: Ending Balance | D24: ='Post-Transaction Fncl Sts'!Q58 -> 30000 | E24: =E21+E22-E23 -> 26250 | F24: 22500 | G24: 18000 | H24: 13500 | I24: 9000 | J24: 9000
B25: Interest Paid | C25: 0.05 | E25: =AVERAGE(D24,E24)*$C$25*(E$9/12) -> 1406.25 | F25: 1218.75 | G25: 1012.5 | H25: 787.5 | I25: 562.5 | J25: 450
B26: % Amortization (Scheduled Amortization .. Debt Repayment) | E26: 0.125 | F26: 0.125 | G26: 0.15 | H26: 0.15 | I26: 0.15 | J26: 0 | L26: If total % Amortizaztion does not sum to 100%, must have an exit.
B28: =UPPER('Post-Transaction Fncl Sts'!P57) -> SUB DEBT
B29: Beginning Balance | E29: =D32 -> 10000 | F29: 10000 | G29: 10000 | H29: 10000 | I29: 10000 | J29: 10000
B30: Plus: Additions | E30: 0 | F30: 0 | G30: 0 | H30: 0 | I30: 0 | J30: 0
B31: Less: Scheduled Amoritzation | C31: None | E31: =IF(AND(ISNUMBER($C$31),'PP&E Schedule'!K6<=$C$31),'Debt Schedule'!$D$32/$C$31,0) -> 0 | F31: =IF(AND(ISNUMBER($C$31),'PP&E Schedule'!L6<=$C$31),'Debt Schedule'!$D$32/$C$31,0) -> 0 | G31: =IF(AND(ISNUMBER($C$31),'PP&E Schedule'!M6<=$C$31),'Debt Schedule'!$D$32/$C$31,0) -> 0 | H31: =IF(AND(ISNUMBER($C$31),'PP&E Schedule'!N6<=$C$31),'Debt Schedule'!$D$32/$C$31,0) -> 0 | I31: =IF(AND(ISNUMBER($C$31),'PP&E Schedule'!O6<=$C$31),'Debt Schedule'!$D$32/$C$31,0) -> 0 | J31: =IF(AND(ISNUMBER($C$31),'PP&E Schedule'!P6<=$C$31),'Debt Schedule'!$D$32/$C$31,0) -> 0 | L31: Senior amortizes by % of principal. Sub amortizes by number of years.
B32: Ending Balance | D32: ='Post-Transaction Fncl Sts'!Q57 -> 10000 | E32: =E29+E30-E31 -> 10000 | F32: 10000 | G32: 10000 | H32: 10000 | I32: 10000 | J32: 10000
B33: Interest Paid | C33: 0.12 | E33: =AVERAGE(D32:E32)*$C33*(E$9/12) -> 1200 | F33: =AVERAGE(E32:F32)*$C33*(F$9/12) -> 1200 | G33: 1200 | H33: 1200 | I33: 1200 | J33: 1200
B35: INTEREST EXPENSE
B36: PIK Interest | E36: 0 | F36: 0 | G36: 0 | H36: 0 | I36: 0 | J36: 0 | L36: PIK interest to be addressed in future videos.
B37: Cash Interest | E37: =E19+E25+E33 -> 2606.25 | F37: 2418.75 | G37: 2212.5 | H37: 1987.5 | I37: 1762.5 | J37: 1650
B38: Total Interest | E38: =E36+E37 -> 2606.25 | F38: 2418.75 | G38: 2212.5 | H38: 1987.5 | I38: 1762.5 | J38: 1650

Sheet PP&E Schedule
B1: ='Sources & Uses'!B1 -> COMPANY
B2: PP&E / D&A
B4: ='Exit Analysis'!K1 -> 1
K5: Projections
J6: Transaction | K6: ='Post-Transaction Fncl Sts'!G6 -> 1 | L6: ='Post-Transaction Fncl Sts'!H6 -> 2 | M6: ='Post-Transaction Fncl Sts'!I6 -> 3 | N6: ='Post-Transaction Fncl Sts'!J6 -> 4 | O6: ='Post-Transaction Fncl Sts'!K6 -> 5 | P6: ='Post-Transaction Fncl Sts'!L6 -> 6
J7: ='Post-Transaction Fncl Sts'!F7 -> 2017 | K7: ='Post-Transaction Fncl Sts'!G7 -> 2018 | L7: ='Post-Transaction Fncl Sts'!H7 -> 2019 | M7: ='Post-Transaction Fncl Sts'!I7 -> 2020 | N7: ='Post-Transaction Fncl Sts'!J7 -> 2021 | O7: ='Post-Transaction Fncl Sts'!K7 -> 2022 | P7: ='Post-Transaction Fncl Sts'!L7 -> 2023
J8: ='Post-Transaction Fncl Sts'!F8 -> 2017-12-31 | K8: ='Post-Transaction Fncl Sts'!G8 -> 2018-12-31 | L8: ='Post-Transaction Fncl Sts'!H8 -> 2019-12-31 | M8: ='Post-Transaction Fncl Sts'!I8 -> 2020-12-31 | N8: ='Post-Transaction Fncl Sts'!J8 -> 2021-12-31 | O8: ='Post-Transaction Fncl Sts'!K8 -> 2022-12-31 | P8: ='Post-Transaction Fncl Sts'!L8 -> 2023-12-31
J9: ='Post-Transaction Fncl Sts'!F9 -> 12 | K9: ='Post-Transaction Fncl Sts'!G9 -> 12 | L9: ='Post-Transaction Fncl Sts'!H9 -> 12 | M9: ='Post-Transaction Fncl Sts'!I9 -> 12 | N9: ='Post-Transaction Fncl Sts'!J9 -> 12 | O9: ='Post-Transaction Fncl Sts'!K9 -> 12 | P9: ='Post-Transaction Fncl Sts'!L9 -> 12
B10: ='Post-Transaction Fncl Sts'!B85 -> PP&E Item 1
B11: Beginning Balance | K11: =J28 -> 12000 | L11: 12557.14286 | M11: 12864.28571 | N11: 12921.42857 | O11: 12728.57143 | P11: 12500
B12: Plus: Capital Expenditures | K12: =E20 -> 1750 | L12: =E21 -> 1750 | M12: =+E22 -> 1750 | N12: =+E23 -> 1750 | O12: =+E24 -> 2000 | P12: =+E25 -> 2000
B14: Less: Depreciation
B15: Asset Base | C15: Yrs | D15: % Asset Base | E15: ='Post-Transaction Fncl Sts'!F85 -> 12000
C16: 14 | D16: 0.9 | E16: =D16*$E$15 -> 10800 | K16: =MAX(0,IF(($C16*12)>=SUM(K$9:$K$9),$E16/($C16*12)*K$9,$E16-SUM(J16:$K16))) -> 771.4285714 | L16: =MAX(0,IF(($C16*12)>=SUM($K$9:L$9),$E16/($C16*12)*L$9,$E16-SUM(K16:$K16))) -> 771.4285714 | M16: =MAX(0,IF(($C16*12)>=SUM($K$9:M$9),$E16/($C16*12)*M$9,$E16-SUM($K16:L16))) -> 771.4285714 | N16: =MAX(0,IF(($C16*12)>=SUM($K$9:N$9),$E16/($C16*12)*N$9,$E16-SUM($K16:M16))) -> 771.4285714 | O16: =MAX(0,IF(($C16*12)>=SUM($K$9:O$9),$E16/($C16*12)*O$9,$E16-SUM($K16:N16))) -> 771.4285714 | P16: =MAX(0,IF(($C16*12)>=SUM($K$9:P$9),$E16/($C16*12)*P$9,$E16-SUM($K16:O16))) -> 771.4285714
C17: 7 | D17: =1-D16 -> 0.1 | E17: =D17*$E$15 -> 1200 | K17: =MAX(0,IF(($C17*12)>=SUM(K$9:$K$9),$E17/($C17*12)*K$9,$E17-SUM(J17:$K17))) -> 171.4285714 | L17: =MAX(0,IF(($C17*12)>=SUM($K$9:L$9),$E17/($C17*12)*L$9,$E17-SUM(K17:$K17))) -> 171.4285714 | M17: =MAX(0,IF(($C17*12)>=SUM($K$9:M$9),$E17/($C17*12)*M$9,$E17-SUM($K17:L17))) -> 171.4285714 | N17: =MAX(0,IF(($C17*12)>=SUM($K$9:N$9),$E17/($C17*12)*N$9,$E17-SUM($K17:M17))) -> 171.4285714 | O17: =MAX(0,IF(($C17*12)>=SUM($K$9:O$9),$E17/($C17*12)*O$9,$E17-SUM($K17:N17))) -> 171.4285714 | P17: =MAX(0,IF(($C17*12)>=SUM($K$9:P$9),$E17/($C17*12)*P$9,$E17-SUM($K17:O17))) -> 171.4285714
E19: CapEx | G19: 1 | H19: 2 | I19: 3
B20: 1 | C20: 7 | E20: =CHOOSE('Exit Analysis'!$K$1,'PP&E Schedule'!G20,'PP&E Schedule'!H20,'PP&E Schedule'!I20) -> 1750 | G20: 1750 | H20: 2000 | I20: 3000 | K20: =MAX(0,IF(($C20*12)>=SUM(K$9:$K$9),$E20/($C20*12)*K$9,$E20-SUM(J20:$K20))) -> 250 | L20: =MAX(0,IF(($C20*12)>=SUM($K$9:L$9),$E20/($C20*12)*L$9,$E20-SUM(K20:$K20))) -> 250 | M20: =MAX(0,IF(($C20*12)>=SUM($K$9:M$9),$E20/($C20*12)*M$9,$E20-SUM($K20:L20))) -> 250 | N20: =MAX(0,IF(($C20*12)>=SUM($K$9:N$9),$E20/($C20*12)*N$9,$E20-SUM($K20:M20))) -> 250 | O20: =MAX(0,IF(($C20*12)>=SUM($K$9:O$9),$E20/($C20*12)*O$9,$E20-SUM($K20:N20))) -> 250 | P20: =MAX(0,IF(($C20*12)>=SUM($K$9:P$9),$E20/($C20*12)*P$9,$E20-SUM($K20:O20))) -> 250
B21: =+B20+1 -> 2 | C21: 7 | E21: =CHOOSE('Exit Analysis'!$K$1,'PP&E Schedule'!G21,'PP&E Schedule'!H21,'PP&E Schedule'!I21) -> 1750 | G21: 1750 | H21: 2000 | I21: 3000 | L21: =MAX(0,IF(($C21*12)>=SUM(L$9:$L$9),$E21/($C21*12)*L$9,$E21-SUM(K21:$L21))) -> 250 | M21: =MAX(0,IF(($C21*12)>=SUM($L$9:M$9),$E21/($C21*12)*M$9,$E21-SUM(L21:$L21))) -> 250 | N21: =MAX(0,IF(($C21*12)>=SUM($L$9:N$9),$E21/($C21*12)*N$9,$E21-SUM($L21:M21))) -> 250 | O21: =MAX(0,IF(($C21*12)>=SUM($L$9:O$9),$E21/($C21*12)*O$9,$E21-SUM($L21:N21))) -> 250 | P21: =MAX(0,IF(($C21*12)>=SUM($L$9:P$9),$E21/($C21*12)*P$9,$E21-SUM($L21:O21))) -> 250
B22: =+B21+1 -> 3 | C22: 7 | E22: =CHOOSE('Exit Analysis'!$K$1,'PP&E Schedule'!G22,'PP&E Schedule'!H22,'PP&E Schedule'!I22) -> 1750 | G22: 1750 | H22: 2000 | I22: 3000 | M22: =MAX(0,IF(($C22*12)>=SUM(M$9:$M$9),$E22/($C22*12)*M$9,$E22-SUM(L22:$M22))) -> 250 | N22: =MAX(0,IF(($C22*12)>=SUM($M$9:N$9),$E22/($C22*12)*N$9,$E22-SUM(M22:$M22))) -> 250 | O22: =MAX(0,IF(($C22*12)>=SUM($M$9:O$9),$E22/($C22*12)*O$9,$E22-SUM($M22:N22))) -> 250 | P22: =MAX(0,IF(($C22*12)>=SUM($M$9:P$9),$E22/($C22*12)*P$9,$E22-SUM($M22:O22))) -> 250
B23: =+B22+1 -> 4 | C23: 7 | E23: =CHOOSE('Exit Analysis'!$K$1,'PP&E Schedule'!G23,'PP&E Schedule'!H23,'PP&E Schedule'!I23) -> 1750 | G23: 1750 | H23: 2250 | I23: 3500 | N23: =MAX(0,IF(($C23*12)>=SUM(N$9:$N$9),$E23/($C23*12)*N$9,$E23-SUM(M23:$N23))) -> 250 | O23: =MAX(0,IF(($C23*12)>=SUM($N$9:O$9),$E23/($C23*12)*O$9,$E23-SUM(N23:$N23))) -> 250 | P23: =MAX(0,IF(($C23*12)>=SUM($N$9:P$9),$E23/($C23*12)*P$9,$E23-SUM($N23:O23))) -> 250
B24: =+B23+1 -> 5 | C24: 7 | E24: =CHOOSE('Exit Analysis'!$K$1,'PP&E Schedule'!G24,'PP&E Schedule'!H24,'PP&E Schedule'!I24) -> 2000 | G24: 2000 | H24: 2250 | I24: 3500 | O24: =MAX(0,IF(($C24*12)>=SUM(O$9:$O$9),$E24/($C24*12)*O$9,$E24-SUM(N24:$O24))) -> 285.7142857 | P24: =MAX(0,IF(($C24*12)>=SUM($O$9:P$9),$E24/($C24*12)*P$9,$E24-SUM(O24:$O24))) -> 285.7142857
B25: =+B24+1 -> 6 | C25: 7 | E25: =CHOOSE('Exit Analysis'!$K$1,'PP&E Schedule'!G25,'PP&E Schedule'!H25,'PP&E Schedule'!I25) -> 2000 | G25: 2000 | H25: 2250 | I25: 3750 | P25: =MAX(0,IF(($C25*12)>=SUM(P$9:$P$9),$E25/($C25*12)*P$9,$E25-SUM(O25:$P25))) -> 285.7142857
B26: Total Depreciation | K26: =SUM(K16:K25) -> 1192.857143 | L26: =SUM(L16:L25) -> 1442.857143 | M26: 1692.857143 | N26: 1942.857143 | O26: 2228.571429 | P26: 2514.285714
B28: Ending Balance | J28: =E15 -> 12000 | K28: =K11+K12-K26 -> 12557.14286 | L28: 12864.28571 | M28: 12921.42857 | N28: 12728.57143 | O28: 12500 | P28: 11985.71429
B29: GOODWILL & INTANGIBLES
B30: Goodwill | J30: ='Post-Transaction Fncl Sts'!F91 -> 62766 | K30: =J32 -> 62766 | L30: 62766 | M30: 62766 | N30: 62766 | O30: 62766 | P30: 62766
B31: Amortization of Intangible | I31: NO | K31: =IF(ISNUMBER($I$31),$J$30/$I$31,0)*(K9/12) -> 0 | L31: 0 | M31: 0 | N31: 0 | O31: 0 | P31: 0
B32: Net Intangible Assets | J32: =J30-J31 -> 62766 | K32: 62766 | L32: 62766 | M32: 62766 | N32: 62766 | O32: 62766 | P32: 62766
B33: AMORTIZATION OF FINANCING FEES
B34: Capitalized Financing Fee Asset | J34: =SUM('Sources & Uses'!G13:G15) -> 850 | K34: =J34-K35 -> 680 | L34: 510 | M34: 340 | N34: 170 | O34: 0 | P34: 0
B35: Amortization | I35: 5 | K35: =IF($I$35>='PP&E Schedule'!K6,'PP&E Schedule'!$J$34/$I$35,0)*(K9/12) -> 170 | L35: =IF($I$35>='PP&E Schedule'!L6,'PP&E Schedule'!$J$34/$I$35,0)*(L9/12) -> 170 | M35: =IF($I$35>='PP&E Schedule'!M6,'PP&E Schedule'!$J$34/$I$35,0)*(M9/12) -> 170 | N35: =IF($I$35>='PP&E Schedule'!N6,'PP&E Schedule'!$J$34/$I$35,0)*(N9/12) -> 170 | O35: =IF($I$35>='PP&E Schedule'!O6,'PP&E Schedule'!$J$34/$I$35,0)*(O9/12) -> 170 | P35: =J34-SUM(K35:O35) -> 0

Sheet Debt Ratios
B1: ='Sources & Uses'!B1 -> COMPANY
B2: DEBT RATIOS / LIQUIDITY
B3: DEBT RATIOS ($000s) | F3: ='Post-Transaction Fncl Sts'!G7 -> 2018 | G3: ='Post-Transaction Fncl Sts'!H7 -> 2019 | H3: ='Post-Transaction Fncl Sts'!I7 -> 2020 | I3: ='Post-Transaction Fncl Sts'!J7 -> 2021 | J3: ='Post-Transaction Fncl Sts'!K7 -> 2022 | K3: ='Post-Transaction Fncl Sts'!L7 -> 2023
F4: ='Post-Transaction Fncl Sts'!G9 -> 12 | G4: ='Post-Transaction Fncl Sts'!H9 -> 12 | H4: ='Post-Transaction Fncl Sts'!I9 -> 12 | I4: ='Post-Transaction Fncl Sts'!J9 -> 12 | J4: ='Post-Transaction Fncl Sts'!K9 -> 12 | K4: ='Post-Transaction Fncl Sts'!L9 -> 12
B6: Cash
B7: Beg. Cash Balance | F7: ='Post-Transaction Fncl Sts'!G192 -> 0 | G7: ='Post-Transaction Fncl Sts'!H192 -> 1186.4283 | H7: ='Post-Transaction Fncl Sts'!I192 -> 2983.00614 | I7: ='Post-Transaction Fncl Sts'!J192 -> 4666.359747 | J7: ='Post-Transaction Fncl Sts'!K192 -> 7019.437284 | K7: ='Post-Transaction Fncl Sts'!L192 -> 9826.537449
B8: End Cash Balance | F8: ='Post-Transaction Fncl Sts'!G193 -> 1186.4283 | G8: ='Post-Transaction Fncl Sts'!H193 -> 2983.00614 | H8: ='Post-Transaction Fncl Sts'!I193 -> 4666.359747 | I8: ='Post-Transaction Fncl Sts'!J193 -> 7019.437284 | J8: ='Post-Transaction Fncl Sts'!K193 -> 9826.537449 | K8: ='Post-Transaction Fncl Sts'!L193 -> 17727.92387
B10: Fixed Charge Coverage
B11: EBITDA | F11: ='Post-Transaction Fncl Sts'!G48 -> 12622.722 | G11: ='Post-Transaction Fncl Sts'!H48 -> 13253.8581 | H11: ='Post-Transaction Fncl Sts'!I48 -> 13916.55101 | I11: ='Post-Transaction Fncl Sts'!J48 -> 14612.37856 | J11: ='Post-Transaction Fncl Sts'!K48 -> 15342.99748 | K11: ='Post-Transaction Fncl Sts'!L48 -> 16110.14736
B12: CapEx | F12: =-'Post-Transaction Fncl Sts'!G176 -> 1750 | G12: =-'Post-Transaction Fncl Sts'!H176 -> 1750 | H12: =-'Post-Transaction Fncl Sts'!I176 -> 1750 | I12: =-'Post-Transaction Fncl Sts'!J176 -> 1750 | J12: =-'Post-Transaction Fncl Sts'!K176 -> 2000 | K12: =-'Post-Transaction Fncl Sts'!L176 -> 2000
B13: Cash Taxes | F13: ='Post-Transaction Fncl Sts'!G39+'Post-Transaction Fncl Sts'!G41 -> 3245.2437 | G13: ='Post-Transaction Fncl Sts'!H39+'Post-Transaction Fncl Sts'!H41 -> 3455.09026 | H13: ='Post-Transaction Fncl Sts'!I39+'Post-Transaction Fncl Sts'!I41 -> 3683.085398 | I13: ='Post-Transaction Fncl Sts'!J39+'Post-Transaction Fncl Sts'!J41 -> 3929.808418 | J13: ='Post-Transaction Fncl Sts'!K39+'Post-Transaction Fncl Sts'!K41 -> 4176.805089 | K13: ='Post-Transaction Fncl Sts'!L39+'Post-Transaction Fncl Sts'!L41 -> 4457.339093
B15: Cash Interest Expense | F15: ='Debt Schedule'!E37 -> 2606.25 | G15: ='Debt Schedule'!F37 -> 2418.75 | H15: ='Debt Schedule'!G37 -> 2212.5 | I15: ='Debt Schedule'!H37 -> 1987.5 | J15: ='Debt Schedule'!I37 -> 1762.5 | K15: ='Debt Schedule'!J37 -> 1650
B16: Mandatory Debt Repayment | F16: =-'Post-Transaction Fncl Sts'!G182 -> 3750 | G16: =-'Post-Transaction Fncl Sts'!H182 -> 3750 | H16: =-'Post-Transaction Fncl Sts'!I182 -> 4500 | I16: =-'Post-Transaction Fncl Sts'!J182 -> 4500 | J16: =-'Post-Transaction Fncl Sts'!K182 -> 4500 | K16: =-'Post-Transaction Fncl Sts'!L182 -> 0
B17: Fixed Charge Coverage Ratio | F17: =(F11-F12-F13)/(F15+F16) -> 1.199996586 | G17: 1.304764797 | H17: 1.263831003 | I17: 1.376889424 | J17: 1.463663456 | K17: 5.850186827
B19: Senior Leverage Ratio | F19: ='Post-Transaction Fncl Sts'!G120/F11 -> 2.079583152 | G19: ='Post-Transaction Fncl Sts'!H120/G11 -> 1.697618899 | H19: ='Post-Transaction Fncl Sts'!I120/H11 -> 1.293423923 | I19: ='Post-Transaction Fncl Sts'!J120/I11 -> 0.9238742309 | J19: ='Post-Transaction Fncl Sts'!K120/J11 -> 0.5865868133 | K19: ='Post-Transaction Fncl Sts'!L120/K11 -> 0.5586541079
B20: Total Leverage Ratio | F20: =SUM('Post-Transaction Fncl Sts'!G118:G120)/F11 -> 2.871805305 | G20: =SUM('Post-Transaction Fncl Sts'!H118:H120)/G11 -> 2.452116188 | H20: =SUM('Post-Transaction Fncl Sts'!I118:I120)/H11 -> 2.01199277 | I20: =SUM('Post-Transaction Fncl Sts'!J118:J120)/I11 -> 1.608225513 | J20: =SUM('Post-Transaction Fncl Sts'!K118:K120)/J11 -> 1.238349939 | K20: =SUM('Post-Transaction Fncl Sts'!L118:L120)/K11 -> 1.179380894
B22: Net Debt
B23: Subordinated Debt | F23: ='Post-Transaction Fncl Sts'!G119 -> 10000 | G23: ='Post-Transaction Fncl Sts'!H119 -> 10000 | H23: ='Post-Transaction Fncl Sts'!I119 -> 10000 | I23: ='Post-Transaction Fncl Sts'!J119 -> 10000 | J23: ='Post-Transaction Fncl Sts'!K119 -> 10000 | K23: ='Post-Transaction Fncl Sts'!L119 -> 10000
B24: Senior Debt | F24: ='Post-Transaction Fncl Sts'!G120 -> 26250 | G24: ='Post-Transaction Fncl Sts'!H120 -> 22500 | H24: ='Post-Transaction Fncl Sts'!I120 -> 18000 | I24: ='Post-Transaction Fncl Sts'!J120 -> 13500 | J24: ='Post-Transaction Fncl Sts'!K120 -> 9000 | K24: ='Post-Transaction Fncl Sts'!L120 -> 9000
B26: Less: Cash Balance | F26: ='Post-Transaction Fncl Sts'!G75 -> 1186.4283 | G26: ='Post-Transaction Fncl Sts'!H75 -> 2983.00614 | H26: ='Post-Transaction Fncl Sts'!I75 -> 4666.359747 | I26: ='Post-Transaction Fncl Sts'!J75 -> 7019.437284 | J26: ='Post-Transaction Fncl Sts'!K75 -> 9826.537449 | K26: ='Post-Transaction Fncl Sts'!L75 -> 17727.92387
B28: Net Debt | F28: =F23+F24-F26 -> 35063.5717 | G28: 29516.99386 | H28: 23333.64025 | I28: 16480.56272 | J28: 9173.462551 | K28: 1272.076129
B30: Senior Lender Bank Ratios
B32: EBITDA | F32: ='Post-Transaction Fncl Sts'!G48 -> 12622.722 | G32: ='Post-Transaction Fncl Sts'!H48 -> 13253.8581 | H32: ='Post-Transaction Fncl Sts'!I48 -> 13916.55101 | I32: ='Post-Transaction Fncl Sts'!J48 -> 14612.37856 | J32: ='Post-Transaction Fncl Sts'!K48 -> 15342.99748 | K32: ='Post-Transaction Fncl Sts'!L48 -> 16110.14736
B33: Cash Taxes | F33: ='Post-Transaction Fncl Sts'!G39+'Post-Transaction Fncl Sts'!G41 -> 3245.2437 | G33: ='Post-Transaction Fncl Sts'!H39+'Post-Transaction Fncl Sts'!H41 -> 3455.09026 | H33: ='Post-Transaction Fncl Sts'!I39+'Post-Transaction Fncl Sts'!I41 -> 3683.085398 | I33: ='Post-Transaction Fncl Sts'!J39+'Post-Transaction Fncl Sts'!J41 -> 3929.808418 | J33: ='Post-Transaction Fncl Sts'!K39+'Post-Transaction Fncl Sts'!K41 -> 4176.805089 | K33: ='Post-Transaction Fncl Sts'!L39+'Post-Transaction Fncl Sts'!L41 -> 4457.339093
B34: CapEx | F34: =-'Post-Transaction Fncl Sts'!G176 -> 1750 | G34: =-'Post-Transaction Fncl Sts'!H176 -> 1750 | H34: =-'Post-Transaction Fncl Sts'!I176 -> 1750 | I34: =-'Post-Transaction Fncl Sts'!J176 -> 1750 | J34: =-'Post-Transaction Fncl Sts'!K176 -> 2000 | K34: =-'Post-Transaction Fncl Sts'!L176 -> 2000
B36: Cash Interest Expense | F36: ='Debt Schedule'!E37 -> 2606.25 | G36: ='Debt Schedule'!F37 -> 2418.75 | H36: ='Debt Schedule'!G37 -> 2212.5 | I36: ='Debt Schedule'!H37 -> 1987.5 | J36: ='Debt Schedule'!I37 -> 1762.5 | K36: ='Debt Schedule'!J37 -> 1650
B37: Mandatory Debt Repayment | F37: =-'Post-Transaction Fncl Sts'!G182 -> 3750 | G37: =-'Post-Transaction Fncl Sts'!H182 -> 3750 | H37: =-'Post-Transaction Fncl Sts'!I182 -> 4500 | I37: =-'Post-Transaction Fncl Sts'!J182 -> 4500 | J37: =-'Post-Transaction Fncl Sts'!K182 -> 4500 | K37: =-'Post-Transaction Fncl Sts'!L182 -> 0
B40: Total Debt Service Coverage Ratio | D40: Minimum | E40: 1.25 | F40: =(F32-F33-F34)/SUM(F36:F37) -> 1.199996586 | G40: 1.304764797 | H40: 1.263831003 | I40: 1.376889424 | J40: 1.463663456 | K40: 5.850186827
B42: Senior Leverage Ratio | D42: Maximum | E42: 2.75 | F42: ='Post-Transaction Fncl Sts'!G120/F11 -> 2.079583152 | G42: ='Post-Transaction Fncl Sts'!H120/G11 -> 1.697618899 | H42: ='Post-Transaction Fncl Sts'!I120/H11 -> 1.293423923 | I42: ='Post-Transaction Fncl Sts'!J120/I11 -> 0.9238742309 | J42: ='Post-Transaction Fncl Sts'!K120/J11 -> 0.5865868133 | K42: ='Post-Transaction Fncl Sts'!L120/K11 -> 0.5586541079
B44: Total Leverage Ratio | D44: Maximum | E44: 4 | F44: =SUM('Post-Transaction Fncl Sts'!G118:G120)/F11 -> 2.871805305 | G44: =SUM('Post-Transaction Fncl Sts'!H118:H120)/G11 -> 2.452116188 | H44: =SUM('Post-Transaction Fncl Sts'!I118:I120)/H11 -> 2.01199277 | I44: =SUM('Post-Transaction Fncl Sts'!J118:J120)/I11 -> 1.608225513 | J44: =SUM('Post-Transaction Fncl Sts'!K118:K120)/J11 -> 1.238349939 | K44: =SUM('Post-Transaction Fncl Sts'!L118:L120)/K11 -> 1.179380894
B46: Senior Leverage Ratio and Debt Burden Implies EBITDA Requirement of… | F46: ='Post-Transaction Fncl Sts'!G120/$E$42 -> 9545.454545 | G46: ='Post-Transaction Fncl Sts'!H120/$E$42 -> 8181.818182 | H46: ='Post-Transaction Fncl Sts'!I120/$E$42 -> 6545.454545 | I46: ='Post-Transaction Fncl Sts'!J120/$E$42 -> 4909.090909 | J46: ='Post-Transaction Fncl Sts'!K120/$E$42 -> 3272.727273 | K46: ='Post-Transaction Fncl Sts'!L120/$E$42 -> 3272.727273
B48: Total Leverage Ratio and Debt Burden Implies EBITDA Requirement of… | F48: =SUM('Post-Transaction Fncl Sts'!G118:G120)/$E$44 -> 9062.5 | G48: =SUM('Post-Transaction Fncl Sts'!H118:H120)/$E$44 -> 8125 | H48: =SUM('Post-Transaction Fncl Sts'!I118:I120)/$E$44 -> 7000 | I48: =SUM('Post-Transaction Fncl Sts'!J118:J120)/$E$44 -> 5875 | J48: =SUM('Post-Transaction Fncl Sts'!K118:K120)/$E$44 -> 4750 | K48: =SUM('Post-Transaction Fncl Sts'!L118:L120)/$E$44 -> 4750
